Workbook

Sheet Datos de identificación 2024
E1: Subsecretaría de Educación Básica Dirección General de Desarrollo Curricular Dirección de Fortalecimiento Curricular para la Formación Personal y Social en la Educación Básica Educación Especial
A6: ANEXO 5 INFORME TÉCNICO PEDAGÓGICO (ITP) 2024 Programa Fortalecimiento de los Servicios de Educación Especial (PFSEE)
A7: El siguiente formato tiene como objetivo recopilar la información trimestral relacionada con el apoyo a los servicios de Educación Especial que atienden a estudiantes con discapacidad y con aptitudes sobresalientes, y que fueron focalizados a través del Programa. Únicamente se deberán de reportar las acciones realizadas con el recurso del PFSEE y en el periodo señalado.
A12: Entidad: | D12: DURANGO
B14: Señale con una "X" el trimestre que se reporta
A15: 1er. Trimestre (enero a marzo) | C15: 2° Trimestre (abril a junio) | E15: 3er. Trimestre (julio a septiembre) | G15: 4° Trimestre (octubre a diciembre)
G16: X

Sheet Instrucciones de llenado
Q1: Subsecretaría de Educación Básica Dirección General de Desarrollo Curricular Dirección de Fortalecimiento Curricular para la Formación Personal y Social en la Educación Básica Educación Especial
A6: Sírvase de las siguientes recomendaciones para el llenado de su formato ITP
A8: Este archivo requiere guardarse como "Libro de Excel habilitado para macros".
A10: 1. Previamente, el formato está diseñado para imprimirse bajo los siguientes criterios, sin embargo, puede hacer las adecuaciones que considere para que las tablas se impriman completas hoja por hoja:
B12: o Formato horizontal
B13: o Tamaño Carta
B14: o Márgenes estrechos
B15: o Escalado 40%
A17: 2. Una vez llenada la pestaña "Servicios EE", se pasan en automático los servicios que fueron beneficiados en cada tabla. Lo anterior, para facilitar el llenado a partir de este dato.
A20: 3. Para marcar el nivel de avance, se ofrecen tres tipos de listados, los cuales se enuncian a continuación. Favor de no escribir, únicamente seleccionar del desplegable:
B22: Realizada | D22: Materiales adquiridos, falta entrega
B23: Pospuesta | D23: Materiales entregados
B24: En desarrollo | D24: Pospuesta
B25: Cancelada | D25: En desarrollo
D26: Cancelada
A28: 4. En la pestaña correspondiente a "Equipamiento específico (DIS)", se despliegan las siguientes opciones. Favor de no escribir, únicamente seleccionar del desplegable:
B30: Material didáctico concreto | D30: Especializados en atención educativa | E30: Para la identificación de BAP | J30: Software
B31: Esquemas o mapas en relieve | D31: Especializados en discapacidad | E31: Para la determinación de apoyos específicos | J31: Hardware
B32: Regletas y punzón | D32: Especializados en ciencia | E32: Instrumentos de evaluación en línea | J32: Equipo de cómputo | T32: Para el desplazamiento
B33: Caja aritmética | D33: Especializados en artes | J33: Cañón | T33: Para la orientación
B34: Ábaco Cramer | D34: En formatos accesibles | J34: Impresora | T34: Para la comunicación
B35: Tableros de comunicación | D35: De literatura infantil | E35: Braille | J35: Enmicadora
B36: Regletas cuisenaire | D36: De literatura juvenil | E36: Lectura fácil | J36: Tableta electrónica
B37: Juegos de estrategia adaptados | D37: Otro (especifique) | E37: Audiolibro | J37: Equipo para producciones audiovisuales de NNAJ
B38: Material para ciencia | E38: Videos con animaciones | J38: Reproductor de audio
B39: Equipo deportivo | E39: Videos con interpretación en LSM | J39: Reproductor de video
B40: Instrumentos musicales | E40: Videos con closed caption | J40: Equipo de asistencia tecnológica
B41: Paquetes con diversos materiales | E41: Tecnología de bajo costo | J41: Tecnología adaptada
B42: Otro (especifique) | E42: Otro (especifique) | J42: Impresora en Braille
J43: Máquina Perkins
J44: Calculadora parlante
J45: Magnificador de pantalla
J46: Contratación de plataforma digital
J47: Material para robótica
J48: Otro (especifique)
A49: 5. En la pestaña correspondiente a "Equipamiento específico (AS)", se despliegan las siguientes opciones. Favor de no escribir, únicamente seleccionar del desplegable:
B51: Juegos de estrategia | D51: Especializados en atención educativa | F51: Inteligencia | J51: Software
B52: Material para ciencia | D52: Especializados en aptitudes sobresalientes | F52: Creatividad | J52: Hardware
B53: Material para artes | D53: Especializados en ciencia | F53: Habilidades sociales | J53: Equipo de cómputo
B54: Equipo deportivo | D54: Especializados en artes | F54: Habilidades emocionales | J54: Cañón
B55: Instrumentos musicales | D55: De literatura infantil | F55: Insumos de papelería para reproducción | J55: Impresora
B56: Paquetes con diversos materiales | D56: De literatura juvenil | F56: Instrumentos de evaluación en línea | J56: Tableta electrónica
B57: Otro (especifique) | D57: Otro (especifique) | J57: Equipo para producciones audiovisuales realizado por NNAJ
J58: Reproductor de audio
J59: Reproductor de video
J60: Material para robótica
J61: Enmicadora
J62: Contratación de plataforma digital
J63: Otro (especifique)
A65: 6. La cantidad distribuida se refiere al total de material que adquirió y distribuyó, es decir 15 regletas, 10 equipos deportivos, etc.
A68: 7. Si los materiales ya se adquirieron, pero no se han entregado, se solicita no reportar beneficiarios, sino hasta que hayan sido recibidos.
A71: 8. En el espacio para observaciones se solicita explicar el nivel de avance del propósito educativo, para cada actividad reportada.
A73: 9. Si en su entidad no hay subsistemas, podrá eliminar una de las tablas correspondientes a las firmas de los Responsables de Educación Especial.
A76: 10. En caso de requerir mayor número de filas para reportar más actividades, podrá hacerlo siguiendo la ruta: Inicio / Celdas / Insertar filas. O bien, haciendo click derecho en el encabezado de la fila.
A79: 11. Solicitamos su apoyo para que este formato no sea desbloqueado, agregado o eliminado columnas, ni fórmulas.

Sheet Servicios EE 2024
N1: Subsecretaría de Educación Básica Dirección General de Desarrollo Curricular Dirección de Fortalecimiento Curricular para la Formación Personal y Social en la Educación Básica Educación Especial
A6: Señale el número de servicios de educación especial beneficiados en el trimestre que se reporta.
A8: Servicios beneficiados en el trimestre. Discapacidad | L8: Servicios beneficiados en el trimestre. Aptitudes sobresalientes
A9: Servicios de educación especial beneficiados con el componente 1. Acciones académicas para Agentes educativos en temas de discapacidad | L9: Servicios de educación especial beneficiados con el componente 1. Acciones académicas para Agentes educativos en temas de aptitudes sobresalientes
A10: Servicios beneficiados a través del PFSEE en el trimestre, componente 1 | B10: USAER | C10: CAM Básico | D10: CAM Laboral | E10: CAPEP | F10: CRIE | G10: UOP | H10: UAEBH | I10: Otro | J10: Total | L10: Servicios beneficiados a través del PFSEE en el trimestre, componente 1 | M10: USAER | N10: CAPEP | O10: CRIE | P10: UOP | Q10: UAEBH | R10: Otro | S10: Total
B11: 81 | C11: 0 | D11: 2 | E11: 0 | F11: 0 | G11: 0 | H11: 0 | I11: 0 | J11: =SUM(B11,C11,C13,D11,E11,F11,G11,H11,I11) -> 111 | M11: 81 | N11: 0 | O11: 0 | P11: 0 | Q11: 0 | R11: 0 | S11: =SUM(M11,N11,O11,P11,Q11,R11) -> 81
C12: Con FpT | I12: (especifique) | R12: (especifique)
C13: 28 | I13: CENTRO DE INICICACIÓN A LA CIENCIA Y LA TECNOLOGÍA | R13: CENTRO DE INICICACIÓN A LA CIENCIA Y LA TECNOLOGÍA
A14: Servicios de educación especial beneficiados con el componente 2. Acciones de atención complementaria para estudiantes con discapacidad | L14: Servicios de educación especial beneficiados con el componente 2. Acciones de atención complementaria para estudiantes con aptitudes sobresalientes
A15: Servicios beneficiados a través del PFSEE en el trimestre, componente 2 | B15: USAER | C15: CAM Básico | D15: CAM Laboral | E15: CAPEP | F15: CRIE | G15: UOP | H15: UAEBH | I15: Otro | J15: Total | L15: Servicios beneficiados a través del PFSEE en el trimestre, componente 2 | M15: USAER | N15: CAPEP | O15: CRIE | P15: UOP | Q15: UAEBH | R15: Otro | S15: Total
B16: 0 | C16: 0 | D16: 2 | E16: 0 | F16: 0 | G16: 0 | H16: 0 | I16: 0 | J16: =SUM(B16,C16,C18,D16,E16,F16,G16,H16,I16) -> 30 | M16: 65 | N16: 0 | O16: 0 | P16: 0 | Q16: 0 | R16: 0 | S16: =SUM(M16,N16,O16,P16,Q16,R16) -> 65
C17: Con FpT | I17: (especifique) | R17: (especifique)
C18: 28 | I18: CENTRO DE INICICACIÓN A LA CIENCIA Y LA TECNOLOGÍA | R18: CENTRO DE INICICACIÓN A LA CIENCIA Y LA TECNOLOGÍA
A19: Servicios de educación especial beneficiados con el componente 3. Equipamiento específico en beneficio de estudiantes con discapacidad | L19: Servicios de educación especial beneficiados con el componente 3. Equipamiento específico en beneficio de estudiantes con aptitudes sobresalientes
A20: Servicios beneficiados a través del PFSEE en el trimestre, componente 3 | B20: USAER | C20: CAM Básico | D20: CAM Laboral | E20: CAPEP | F20: CRIE | G20: UOP | H20: UAEBH | I20: Otro | J20: Total | L20: Servicios beneficiados a través del PFSEE en el trimestre, componente 3 | M20: USAER | N20: CAPEP | O20: CRIE | P20: UOP | Q20: UAEBH | R20: Otro | S20: Total
B21: 81 | C21: 0 | D21: 2 | E21: 0 | F21: 0 | G21: 0 | H21: 0 | I21: 0 | J21: =SUM(B21,C21,C23,D21,E21,F21,G21,H21,I21) -> 111 | M21: 81 | N21: 0 | O21: 0 | P21: 0 | Q21: 0 | R21: 0 | S21: =SUM(M21,N21,O21,P21,Q21,R21) -> 81
C22: Con FpT | I22: (especifique) | R22: (especifique)
C23: 28 | I23: CENTRO DE INICICACIÓN A LA CIENCIA Y LA TECNOLOGÍA | R23: CENTRO DE INICICACIÓN A LA CIENCIA Y LA TECNOLOGÍA
A25: *Con FpT: Con Formación para el Trabajo
A27: Para el llenado de esta hoja de Excel considerar los siguientes puntos:
A28: a) Reportar únicamente los que se han visto beneficiados por el PFSEE cada trimestre, por componente.
A29: b) En "CAM Básico" se reportan los centros que ofrecen educación básica, que no cuentan con formación para el trabajo.
A30: c) En "Con FpT" se reportan los CAM Básicos que además de la educación básica, cuentan con talleres de formación para el trabajo.
A31: d) En "CAM Laboral" se reportan únicamente los centros dedicados a la formación laboral o para el trabajo.
A32: e) Cuidar de no repetir los datos, pues entre lo reportado en CAM Básico, Con FpT y CAM Laboral, debe de sumar la totalidad de los CAM en su entidad.
A33: f) Si en su entidad cuenta con otro tipo de servicio no considerado en la tabla, reportar la cantidad en "Otro" y anotar su nombre en el apartado "(especifique)".

Sheet Población beneficiaria DIS 2024
AD1: Subsecretaría de Educación Básica Dirección General de Desarrollo Curricular Dirección de Fortalecimiento Curricular para la Formación Personal y Social en la Educación Básica Educación Especial
A6: Información cuantitativa respecto a la población con discapacidad que atienden los servicios de educación especial que fueron focalizados y beneficiados en este trimestre en su entidad, por sexo y tipo de condición:
A8: Población con discapacidad que se ha visto beneficiada en el trimestre por acciones a los servicios de educación especial en el Componente 1
A9: Condición | B9: Beneficiarias/os por condición y por SEE | Q9: Población total beneficiaria | T9: De la población total reportada por condición, especifique si se trata de alguna de las siguientes poblaciones
B10: USAER | E10: CAM básico | H10: CAM básico con FpT | K10: CAM laboral | N10: Otro | Q10: M | R10: H | S10: TOTAL | T10: Población indígena | W10: Población afrodescendiente | Z10: Población migrante | AD10: Estudiantes beneficiados con discapacidad
B11: M | C11: H | D11: TOTAL | E11: M | F11: H | G11: TOTAL | H11: M | I11: H | J11: TOTAL | K11: M | L11: H | M11: TOTAL | N11: M | O11: H | P11: TOTAL | T11: M | U11: H | V11: TOTAL | W11: M | X11: H | Y11: TOTAL | Z11: M | AA11: H | AB11: TOTAL | AD11: CAPEP | AH11: UAEBH
A12: Ceguera | B12: 7 | C12: 13 | D12: =SUM(B12:C12) -> 20 | E12: 0 | F12: 0 | G12: =SUM(E12:F12) -> 0 | H12: 5 | I12: 5 | J12: =SUM(H12:I12) -> 10 | K12: 0 | L12: 1 | M12: =SUM(K12:L12) -> 1 | N12: 0 | O12: 0 | P12: =SUM(N12:O12) -> 0 | Q12: =SUM(B12,E12,H12,K12,N12) -> 12 | R12: =SUM(C12,F12,I12,L12,O12) -> 19 | S12: =SUM(Q12,R12) -> 31 | T12: 0 | U12: 0 | V12: =SUM(T12,U12) -> 0 | W12: 0 | X12: 0 | Y12: =SUM(W12,X12) -> 0 | Z12: 0 | AA12: 0 | AB12: =SUM(Z12,AA12) -> 0 | AD12: M | AE12: H | AF12: TOTAL | AH12: M | AI12: H | AJ12: TOTAL
A13: Baja Visión | B13: 33 | C13: 60 | D13: =SUM(B13:C13) -> 93 | E13: 0 | F13: 0 | G13: =SUM(E13:F13) -> 0 | H13: 3 | I13: 2 | J13: =SUM(H13:I13) -> 5 | K13: 0 | L13: 0 | M13: =SUM(K13:L13) -> 0 | N13: 0 | O13: 0 | P13: =SUM(N13:O13) -> 0 | Q13: =SUM(B13,E13,H13,K13,N13) -> 36 | R13: =SUM(C13,F13,I13,L13,O13) -> 62 | S13: =SUM(Q13,R13) -> 98 | T13: 0 | U13: 0 | V13: =SUM(T13,U13) -> 0 | W13: 0 | X13: 0 | Y13: =SUM(W13,X13) -> 0 | Z13: 0 | AA13: 0 | AB13: =SUM(Z13,AA13) -> 0 | AD13: 0 | AE13: 0 | AF13: =SUM(AD13,AE13) -> 0 | AH13: 0 | AI13: 0 | AJ13: =SUM(AH13,AI13) -> 0
A14: Sordera | B14: 8 | C14: 13 | D14: 21 | E14: 0 | F14: 0 | G14: 0 | H14: 5 | I14: 7 | J14: 12 | K14: 1 | L14: 1 | M14: 2 | N14: 0 | O14: 0 | P14: 0 | Q14: 14 | R14: 21 | S14: 35 | T14: 0 | U14: 0 | V14: 0 | W14: 0 | X14: 0 | Y14: 0 | Z14: 0 | AA14: 0 | AB14: 0 | AD14: CRIE | AH14: UOP
A15: Hipoacusia | B15: 51 | C15: 59 | D15: 110 | E15: 0 | F15: 0 | G15: 0 | H15: 11 | I15: 7 | J15: 18 | K15: 0 | L15: 0 | M15: 0 | N15: 0 | O15: 0 | P15: 0 | Q15: 62 | R15: 66 | S15: 128 | T15: 0 | U15: 0 | V15: 0 | W15: 0 | X15: 0 | Y15: 0 | Z15: 0 | AA15: 0 | AB15: 0 | AD15: M | AE15: H | AF15: TOTAL | AH15: M | AI15: H | AJ15: TOTAL
A16: Sordoceguera | B16: 0 | C16: 0 | D16: 0 | E16: 0 | F16: 0 | G16: 0 | H16: 0 | I16: 0 | J16: 0 | K16: 0 | L16: 0 | M16: 0 | N16: 0 | O16: 0 | P16: 0 | Q16: 0 | R16: 0 | S16: 0 | T16: 0 | U16: 0 | V16: 0 | W16: 0 | X16: 0 | Y16: 0 | Z16: 0 | AA16: 0 | AB16: 0 | AD16: 0 | AE16: 0 | AF16: =SUM(AD16,AE16) -> 0 | AH16: 0 | AI16: 0 | AJ16: =SUM(AH16,AI16) -> 0
A17: Motriz | B17: 63 | C17: 93 | D17: 156 | E17: 0 | F17: 0 | G17: 0 | H17: 44 | I17: 63 | J17: 107 | K17: 1 | L17: 2 | M17: 3 | N17: 0 | O17: 0 | P17: 0 | Q17: 108 | R17: 158 | S17: 266 | T17: 0 | U17: 0 | V17: 0 | W17: 0 | X17: 0 | Y17: 0 | Z17: 0 | AA17: 0 | AB17: 0 | AD17: Personal docente y/o directivos beneficiados
A18: Intelectual | B18: 265 | C18: 363 | D18: 628 | E18: 0 | F18: 0 | G18: 0 | H18: 355 | I18: 481 | J18: 836 | K18: 47 | L18: 48 | M18: 95 | N18: 0 | O18: 0 | P18: 0 | Q18: 667 | R18: 892 | S18: 1559 | T18: 0 | U18: 0 | V18: 0 | W18: 0 | X18: 0 | Y18: 0 | Z18: 0 | AA18: 0 | AB18: 0 | AD18: CRIE | AH18: UOP
A19: Psicosocial | B19: 3 | C19: 4 | D19: 7 | E19: 0 | F19: 0 | G19: 0 | H19: 6 | I19: 5 | J19: 11 | K19: 0 | L19: 2 | M19: 2 | N19: 0 | O19: 0 | P19: 0 | Q19: 9 | R19: 11 | S19: 20 | T19: 0 | U19: 0 | V19: 0 | W19: 0 | X19: 0 | Y19: 0 | Z19: 0 | AA19: 0 | AB19: 0 | AD19: M | AE19: H | AF19: TOTAL | AH19: M | AI19: H | AJ19: TOTAL
A20: Espectro autista | B20: 62 | C20: 390 | D20: 452 | E20: 0 | F20: 0 | G20: 0 | H20: 50 | I20: 161 | J20: 211 | K20: 1 | L20: 5 | M20: 6 | N20: 0 | O20: 0 | P20: 0 | Q20: 113 | R20: 556 | S20: 669 | T20: 0 | U20: 0 | V20: 0 | W20: 0 | X20: 0 | Y20: 0 | Z20: 0 | AA20: 0 | AB20: 0 | AD20: 0 | AE20: 0 | AF20: =SUM(AD20,AE20) -> 0 | AH20: 0 | AI20: 0 | AJ20: =SUM(AH20,AI20) -> 0
A21: Múltiple | B21: 32 | C21: 21 | D21: 53 | E21: 0 | F21: 0 | G21: 0 | H21: 80 | I21: 109 | J21: 189 | K21: 4 | L21: 4 | M21: 8 | N21: 0 | O21: 0 | P21: 0 | Q21: 116 | R21: 134 | S21: 250 | T21: 0 | U21: 0 | V21: 0 | W21: 0 | X21: 0 | Y21: 0 | Z21: 0 | AA21: 0 | AB21: 0 | AD21: Familias y/o público en general beneficiados
A22: TDA TDA-H | B22: 133 | C22: 715 | D22: 848 | E22: 0 | F22: 0 | G22: 0 | H22: 7 | I22: 29 | J22: 36 | K22: 0 | L22: 4 | M22: 4 | N22: 0 | O22: 0 | P22: 0 | Q22: 140 | R22: 748 | S22: 888 | T22: 0 | U22: 0 | V22: 0 | W22: 0 | X22: 0 | Y22: 0 | Z22: 0 | AA22: 0 | AB22: 0 | AD22: CRIE | AH22: UOP
A23: Totales | B23: =SUM(B12:B22) -> 657 | C23: =SUM(C12:C22) -> 1731 | D23: =SUM(B23:C23) -> 2388 | E23: =SUM(E12:E22) -> 0 | F23: =SUM(F12:F22) -> 0 | G23: =SUM(E23,F23) -> 0 | H23: =SUM(H12:H22) -> 566 | I23: =SUM(I12:I22) -> 869 | J23: =SUM(H23,I23) -> 1435 | K23: =SUM(K12:K22) -> 54 | L23: =SUM(L12:L22) -> 67 | M23: =SUM(K23:L23) -> 121 | N23: =SUM(N12:N22) -> 0 | O23: =SUM(O12:O22) -> 0 | P23: =SUM(N23:O23) -> 0 | Q23: =SUM(B23,E23,H23,K23,N23) -> 1277 | R23: =SUM(C23,F23,I23,L23,O23) -> 2667 | S23: 3944 | T23: =SUM(T12:T22) -> 0 | U23: =SUM(U12:U22) -> 0 | V23: 0 | W23: =SUM(W12:W22) -> 0 | X23: =SUM(X12:X22) -> 0 | Y23: 0 | Z23: =SUM(Z12:Z22) -> 0 | AA23: =SUM(AA12:AA22) -> 0 | AB23: 0 | AD23: M | AE23: H | AF23: TOTAL | AH23: M | AI23: H | AJ23: TOTAL
AD24: 0 | AE24: 0 | AF24: =SUM(AD24,AE24) -> 0 | AH24: 0 | AI24: 0 | AJ24: =SUM(AH24,AI24) -> 0
AF26: Total de estudiantes con discapacidad beneficiados
AF28: M | AG28: H | AH28: Total
AF29: =SUM(Q23,AD13,AH13,AD16,AH16) -> 1277 | AG29: =SUM(R23,AE13,AI13,AE16,AI16) -> 2667 | AH29: =SUM(AF29,AG29) -> 3944
A30: Población con discapacidad que se ha visto beneficiada en el trimestre por acciones a los servicios de educación especial en el Componente 2
A31: Condición | B31: Beneficiarias/os por condición y por SEE | Q31: Población total beneficiaria | T31: De la población total reportada por condición, especifique si se trata de alguna de las siguientes poblaciones
B32: USAER | E32: CAM básico | H32: CAM básico con FpT | K32: CAM laboral | N32: Otro | Q32: M | R32: H | S32: TOTAL | T32: Población indígena | W32: Población afrodescendiente | Z32: Población migrante | AD32: Estudiantes beneficiados discapacidad
B33: M | C33: H | D33: TOTAL | E33: M | F33: H | G33: TOTAL | H33: M | I33: H | J33: TOTAL | K33: M | L33: H | M33: TOTAL | N33: M | O33: H | P33: TOTAL | T33: M | U33: H | V33: TOTAL | W33: M | X33: H | Y33: TOTAL | Z33: M | AA33: H | AB33: TOTAL | AD33: CAPEP | AH33: UAEBH
A34: Ceguera | B34: 0 | C34: 0 | D34: =SUM(B34:C34) -> 0 | E34: 0 | F34: 0 | G34: =SUM(E34:F34) -> 0 | H34: 5 | I34: 5 | J34: =SUM(H34:I34) -> 10 | K34: 0 | L34: 1 | M34: =SUM(K34:L34) -> 1 | N34: 0 | O34: 0 | P34: =SUM(N34:O34) -> 0 | Q34: =SUM(B34,E34,H34,K34,N34) -> 5 | R34: =SUM(C34,F34,I34,L34,O34) -> 6 | S34: =SUM(Q34,R34) -> 11 | T34: 0 | U34: 0 | V34: =SUM(T34,U34) -> 0 | W34: 0 | X34: 0 | Y34: =SUM(W34,X34) -> 0 | Z34: 0 | AA34: 0 | AB34: =SUM(Z34,AA34) -> 0 | AD34: M | AE34: H | AF34: TOTAL | AH34: M | AI34: H | AJ34: TOTAL
A35: Baja Visión | B35: 0 | C35: 0 | D35: =SUM(B35:C35) -> 0 | E35: 0 | F35: 0 | G35: =SUM(E35:F35) -> 0 | H35: 3 | I35: 2 | J35: =SUM(H35:I35) -> 5 | K35: 0 | L35: 0 | M35: =SUM(K35:L35) -> 0 | N35: 0 | O35: 0 | P35: =SUM(N35:O35) -> 0 | Q35: =SUM(B35,E35,H35,K35,N35) -> 3 | R35: =SUM(C35,F35,I35,L35,O35) -> 2 | S35: =SUM(Q35,R35) -> 5 | T35: 0 | U35: 0 | V35: =SUM(T35,U35) -> 0 | W35: 0 | X35: 0 | Y35: =SUM(W35,X35) -> 0 | Z35: 0 | AA35: 0 | AB35: =SUM(Z35,AA35) -> 0 | AD35: 0 | AE35: 0 | AF35: =SUM(AD35,AE35) -> 0 | AH35: 0 | AI35: 0 | AJ35: =SUM(AH35,AI35) -> 0
A36: Sordera | B36: 0 | C36: 0 | D36: 0 | E36: 0 | F36: 0 | G36: 0 | H36: 5 | I36: 7 | J36: 12 | K36: 1 | L36: 1 | M36: 2 | N36: 0 | O36: 0 | P36: 0 | Q36: 6 | R36: 8 | S36: 14 | T36: 0 | U36: 0 | V36: 0 | W36: 0 | X36: 0 | Y36: 0 | Z36: 0 | AA36: 0 | AB36: 0 | AD36: CRIE | AH36: UOP
A37: Hipoacusia | B37: 0 | C37: 0 | D37: 0 | E37: 0 | F37: 0 | G37: 0 | H37: 11 | I37: 7 | J37: 18 | K37: 0 | L37: 0 | M37: 0 | N37: 0 | O37: 0 | P37: 0 | Q37: 11 | R37: 7 | S37: 18 | T37: 0 | U37: 0 | V37: 0 | W37: 0 | X37: 0 | Y37: 0 | Z37: 0 | AA37: 0 | AB37: 0 | AD37: M | AE37: H | AF37: TOTAL | AH37: M | AI37: H | AJ37: TOTAL
A38: Sordoceguera | B38: 0 | C38: 0 | D38: 0 | E38: 0 | F38: 0 | G38: 0 | H38: 0 | I38: 0 | J38: 0 | K38: 0 | L38: 0 | M38: 0 | N38: 0 | O38: 0 | P38: 0 | Q38: 0 | R38: 0 | S38: 0 | T38: 0 | U38: 0 | V38: 0 | W38: 0 | X38: 0 | Y38: 0 | Z38: 0 | AA38: 0 | AB38: 0 | AD38: 0 | AE38: 0 | AF38: =SUM(AD38,AE38) -> 0 | AH38: 0 | AI38: 0 | AJ38: =SUM(AH38,AI38) -> 0
A39: Motriz | B39: 0 | C39: 0 | D39: 0 | E39: 0 | F39: 0 | G39: 0 | H39: 44 | I39: 63 | J39: 107 | K39: 1 | L39: 2 | M39: 3 | N39: 0 | O39: 0 | P39: 0 | Q39: 45 | R39: 65 | S39: 110 | T39: 0 | U39: 0 | V39: 0 | W39: 0 | X39: 0 | Y39: 0 | Z39: 0 | AA39: 0 | AB39: 0 | AD39: Personal docente y/o directivos beneficiados
A40: Intelectual | B40: 0 | C40: 0 | D40: 0 | E40: 0 | F40: 0 | G40: 0 | H40: 355 | I40: 481 | J40: 836 | K40: 47 | L40: 48 | M40: 95 | N40: 0 | O40: 0 | P40: 0 | Q40: 402 | R40: 529 | S40: 931 | T40: 0 | U40: 0 | V40: 0 | W40: 0 | X40: 0 | Y40: 0 | Z40: 0 | AA40: 0 | AB40: 0 | AD40: CRIE | AH40: UOP
A41: Psicosocial | B41: 0 | C41: 0 | D41: 0 | E41: 0 | F41: 0 | G41: 0 | H41: 6 | I41: 5 | J41: 11 | K41: 0 | L41: 2 | M41: 2 | N41: 0 | O41: 0 | P41: 0 | Q41: 6 | R41: 7 | S41: 13 | T41: 0 | U41: 0 | V41: 0 | W41: 0 | X41: 0 | Y41: 0 | Z41: 0 | AA41: 0 | AB41: 0 | AD41: M | AE41: H | AF41: TOTAL | AH41: M | AI41: H | AJ41: TOTAL
A42: Espectro autista | B42: 0 | C42: 0 | D42: 0 | E42: 0 | F42: 0 | G42: 0 | H42: 50 | I42: 161 | J42: 211 | K42: 1 | L42: 5 | M42: 6 | N42: 0 | O42: 0 | P42: 0 | Q42: 51 | R42: 166 | S42: 217 | T42: 0 | U42: 0 | V42: 0 | W42: 0 | X42: 0 | Y42: 0 | Z42: 0 | AA42: 0 | AB42: 0 | AD42: 0 | AE42: 0 | AF42: =SUM(AD42,AE42) -> 0 | AH42: 0 | AI42: 0 | AJ42: =SUM(AH42,AI42) -> 0
A43: Múltiple | B43: 0 | C43: 0 | D43: 0 | E43: 0 | F43: 0 | G43: 0 | H43: 80 | I43: 109 | J43: 189 | K43: 4 | L43: 4 | M43: 8 | N43: 0 | O43: 0 | P43: 0 | Q43: 84 | R43: 113 | S43: 197 | T43: 0 | U43: 0 | V43: 0 | W43: 0 | X43: 0 | Y43: 0 | Z43: 0 | AA43: 0 | AB43: 0 | AD43: Familias y/o público en general beneficiados
A44: TDA TDA-H | B44: 0 | C44: 0 | D44: 0 | E44: 0 | F44: 0 | G44: 0 | H44: 7 | I44: 29 | J44: 36 | K44: 0 | L44: 4 | M44: 4 | N44: 0 | O44: 0 | P44: 0 | Q44: 7 | R44: 33 | S44: 40 | T44: 0 | U44: 0 | V44: 0 | W44: 0 | X44: 0 | Y44: 0 | Z44: 0 | AA44: 0 | AB44: 0 | AD44: CRIE | AH44: UOP
A45: Totales | B45: =SUM(B34:B44) -> 0 | C45: =SUM(C34:C44) -> 0 | D45: =SUM(B45:C45) -> 0 | E45: =SUM(E34:E44) -> 0 | F45: =SUM(F34:F44) -> 0 | G45: =SUM(E45,F45) -> 0 | H45: =SUM(H34:H44) -> 566 | I45: =SUM(I34:I44) -> 869 | J45: =SUM(H45,I45) -> 1435 | K45: =SUM(K34:K44) -> 54 | L45: =SUM(L34:L44) -> 67 | M45: =SUM(K45:L45) -> 121 | N45: =SUM(N34:N44) -> 0 | O45: =SUM(O34:O44) -> 0 | P45: =SUM(N45:O45) -> 0 | Q45: =SUM(B45,E45,H45,K45,N45) -> 620 | R45: =SUM(C45,F45,I45,L45,O45) -> 936 | S45: 1556 | T45: =SUM(T34:T44) -> 0 | U45: =SUM(U34:U44) -> 0 | V45: 0 | W45: =SUM(W34:W44) -> 0 | X45: =SUM(X34:X44) -> 0 | Y45: 0 | Z45: =SUM(Z34:Z44) -> 0 | AA45: =SUM(AA34:AA44) -> 0 | AB45: 0 | AD45: M | AE45: H | AF45: TOTAL | AH45: M | AI45: H | AJ45: TOTAL
AD46: 0 | AE46: 0 | AF46: =SUM(AD46,AE46) -> 0 | AH46: 0 | AI46: 0 | AJ46: =SUM(AH46,AI46) -> 0
AF48: Total de estudiantes con discapacidad beneficiados
AF50: M | AG50: H | AH50: Total
AF51: =SUM(Q45,AD35,AH35,AD38,AH38) -> 620 | AG51: =SUM(R45,AE35,AI35,AE38,AI38) -> 936 | AH51: =SUM(AF51,AG51) -> 1556
A52: Población con discapacidad que se ha visto beneficiada en el trimestre por acciones a los servicios de educación especial en el Componente 3
A53: Condición | B53: Beneficiarias/os por condición y por SEE | Q53: Población total beneficiaria | T53: De la población total reportada por condición, especifique si se trata de alguna de las siguientes poblaciones
B54: USAER | E54: CAM básico | H54: CAM básico con FpT | K54: CAM laboral | N54: Otro | Q54: M | R54: H | S54: TOTAL | T54: Población indígena | W54: Población afrodescendiente | Z54: Población migrante | AD54: Estudiantes beneficiados discapacidad
B55: M | C55: H | D55: TOTAL | E55: M | F55: H | G55: TOTAL | H55: M | I55: H | J55: TOTAL | K55: M | L55: H | M55: TOTAL | N55: M | O55: H | P55: TOTAL | T55: M | U55: H | V55: TOTAL | W55: M | X55: H | Y55: TOTAL | Z55: M | AA55: H | AB55: TOTAL | AD55: CAPEP | AH55: UAEBH
A56: Ceguera | B56: 7 | C56: 13 | D56: =SUM(B56:C56) -> 20 | E56: 0 | F56: 0 | G56: =SUM(E56:F56) -> 0 | H56: 5 | I56: 5 | J56: =SUM(H56:I56) -> 10 | K56: 0 | L56: 1 | M56: =SUM(K56:L56) -> 1 | N56: 0 | O56: 0 | P56: =SUM(N56:O56) -> 0 | Q56: =SUM(B56,E56,H56,K56,N56) -> 12 | R56: =SUM(C56,F56,I56,L56,O56) -> 19 | S56: =SUM(Q56,R56) -> 31 | T56: 0 | U56: 0 | V56: =SUM(T56,U56) -> 0 | W56: 0 | X56: 0 | Y56: =SUM(W56,X56) -> 0 | Z56: 0 | AA56: 0 | AB56: =SUM(Z56,AA56) -> 0 | AD56: M | AE56: H | AF56: TOTAL | AH56: M | AI56: H | AJ56: TOTAL
A57: Baja Visión | B57: 33 | C57: 60 | D57: =SUM(B57:C57) -> 93 | E57: 0 | F57: 0 | G57: =SUM(E57:F57) -> 0 | H57: 3 | I57: 2 | J57: =SUM(H57:I57) -> 5 | K57: 0 | L57: 0 | M57: =SUM(K57:L57) -> 0 | N57: 0 | O57: 0 | P57: =SUM(N57:O57) -> 0 | Q57: =SUM(B57,E57,H57,K57,N57) -> 36 | R57: =SUM(C57,F57,I57,L57,O57) -> 62 | S57: =SUM(Q57,R57) -> 98 | T57: 0 | U57: 0 | V57: =SUM(T57,U57) -> 0 | W57: 0 | X57: 0 | Y57: =SUM(W57,X57) -> 0 | Z57: 0 | AA57: 0 | AB57: =SUM(Z57,AA57) -> 0 | AD57: 0 | AE57: 0 | AF57: =SUM(AD57,AE57) -> 0 | AH57: 0 | AI57: 0 | AJ57: =SUM(AH57,AI57) -> 0
A58: Sordera | B58: 8 | C58: 13 | D58: 21 | E58: 0 | F58: 0 | G58: 0 | H58: 5 | I58: 7 | J58: 12 | K58: 1 | L58: 1 | M58: 2 | N58: 0 | O58: 0 | P58: 0 | Q58: 14 | R58: 21 | S58: 35 | T58: 0 | U58: 0 | V58: 0 | W58: 0 | X58: 0 | Y58: 0 | Z58: 0 | AA58: 0 | AB58: 0 | AD58: CRIE | AH58: UOP
A59: Hipoacusia | B59: 51 | C59: 59 | D59: 110 | E59: 0 | F59: 0 | G59: 0 | H59: 11 | I59: 7 | J59: 18 | K59: 0 | L59: 0 | M59: 0 | N59: 0 | O59: 0 | P59: 0 | Q59: 62 | R59: 66 | S59: 128 | T59: 0 | U59: 0 | V59: 0 | W59: 0 | X59: 0 | Y59: 0 | Z59: 0 | AA59: 0 | AB59: 0 | AD59: M | AE59: H | AF59: TOTAL | AH59: M | AI59: H | AJ59: TOTAL
A60: Sordoceguera | B60: 0 | C60: 0 | D60: 0 | E60: 0 | F60: 0 | G60: 0 | H60: 0 | I60: 0 | J60: 0 | K60: 0 | L60: 0 | M60: 0 | N60: 0 | O60: 0 | P60: 0 | Q60: 0 | R60: 0 | S60: 0 | T60: 0 | U60: 0 | V60: 0 | W60: 0 | X60: 0 | Y60: 0 | Z60: 0 | AA60: 0 | AB60: 0 | AD60: 0 | AE60: 0 | AF60: =SUM(AD60,AE60) -> 0 | AH60: 0 | AI60: 0 | AJ60: =SUM(AH60,AI60) -> 0
A61: Motriz | B61: 63 | C61: 93 | D61: 156 | E61: 0 | F61: 0 | G61: 0 | H61: 44 | I61: 63 | J61: 107 | K61: 1 | L61: 2 | M61: 3 | N61: 0 | O61: 0 | P61: 0 | Q61: 108 | R61: 158 | S61: 266 | T61: 0 | U61: 0 | V61: 0 | W61: 0 | X61: 0 | Y61: 0 | Z61: 0 | AA61: 0 | AB61: 0 | AD61: Personal docente y/o directivos beneficiados
A62: Intelectual | B62: 265 | C62: 363 | D62: 628 | E62: 0 | F62: 0 | G62: 0 | H62: 355 | I62: 481 | J62: 836 | K62: 47 | L62: 48 | M62: 95 | N62: 0 | O62: 0 | P62: 0 | Q62: 667 | R62: 892 | S62: 1559 | T62: 0 | U62: 0 | V62: 0 | W62: 0 | X62: 0 | Y62: 0 | Z62: 0 | AA62: 0 | AB62: 0 | AD62: CRIE | AH62: UOP
A63: Psicosocial | B63: 3 | C63: 4 | D63: 7 | E63: 0 | F63: 0 | G63: 0 | H63: 6 | I63: 5 | J63: 11 | K63: 0 | L63: 2 | M63: 2 | N63: 0 | O63: 0 | P63: 0 | Q63: 9 | R63: 11 | S63: 20 | T63: 0 | U63: 0 | V63: 0 | W63: 0 | X63: 0 | Y63: 0 | Z63: 0 | AA63: 0 | AB63: 0 | AD63: M | AE63: H | AF63: TOTAL | AH63: M | AI63: H | AJ63: TOTAL
A64: Espectro autista | B64: 62 | C64: 390 | D64: 452 | E64: 0 | F64: 0 | G64: 0 | H64: 50 | I64: 161 | J64: 211 | K64: 1 | L64: 5 | M64: 6 | N64: 0 | O64: 0 | P64: 0 | Q64: 113 | R64: 556 | S64: 669 | T64: 0 | U64: 0 | V64: 0 | W64: 0 | X64: 0 | Y64: 0 | Z64: 0 | AA64: 0 | AB64: 0 | AD64: 0 | AE64: 0 | AF64: =SUM(AD64,AE64) -> 0 | AH64: 0 | AI64: 0 | AJ64: =SUM(AH64,AI64) -> 0
A65: Múltiple | B65: 32 | C65: 21 | D65: 53 | E65: 0 | F65: 0 | G65: 0 | H65: 80 | I65: 109 | J65: 189 | K65: 4 | L65: 4 | M65: 8 | N65: 0 | O65: 0 | P65: 0 | Q65: 116 | R65: 134 | S65: 250 | T65: 0 | U65: 0 | V65: 0 | W65: 0 | X65: 0 | Y65: 0 | Z65: 0 | AA65: 0 | AB65: 0 | AD65: Familias y/o público en general beneficiados
A66: TDA TDA-H | B66: 133 | C66: 715 | D66: 848 | E66: 0 | F66: 0 | G66: 0 | H66: 7 | I66: 29 | J66: 36 | K66: 0 | L66: 4 | M66: 4 | N66: 0 | O66: 0 | P66: 0 | Q66: 140 | R66: 748 | S66: 888 | T66: 0 | U66: 0 | V66: 0 | W66: 0 | X66: 0 | Y66: 0 | Z66: 0 | AA66: 0 | AB66: 0 | AD66: CRIE | AH66: UOP
A67: Totales | B67: =SUM(B56:B66) -> 657 | C67: =SUM(C56:C66) -> 1731 | D67: =SUM(B67:C67) -> 2388 | E67: =SUM(E56:E66) -> 0 | F67: =SUM(F56:F66) -> 0 | G67: =SUM(E67,F67) -> 0 | H67: =SUM(H56:H66) -> 566 | I67: =SUM(I56:I66) -> 869 | J67: =SUM(H67,I67) -> 1435 | K67: =SUM(K56:K66) -> 54 | L67: =SUM(L56:L66) -> 67 | M67: =SUM(K67:L67) -> 121 | N67: =SUM(N56:N66) -> 0 | O67: =SUM(O56:O66) -> 0 | P67: =SUM(N67:O67) -> 0 | Q67: =SUM(B67,E67,H67,K67,N67) -> 1277 | R67: =SUM(C67,F67,I67,L67,O67) -> 2667 | S67: 3944 | T67: =SUM(T56:T66) -> 0 | U67: =SUM(U56:U66) -> 0 | V67: 0 | W67: =SUM(W56:W66) -> 0 | X67: =SUM(X56:X66) -> 0 | Y67: 0 | Z67: =SUM(Z56:Z66) -> 0 | AA67: =SUM(AA56:AA66) -> 0 | AB67: 0 | AD67: M | AE67: H | AF67: TOTAL | AH67: M | AI67: H | AJ67: TOTAL
AD68: 0 | AE68: 0 | AF68: =SUM(AD68,AE68) -> 0 | AH68: 0 | AI68: 0 | AJ68: =SUM(AH68,AI68) -> 0
AF70: Total de estudiantes con discapacidad beneficiados
AF72: M | AG72: H | AH72: Total
AF73: =SUM(Q67,AD57,AH57,AD60,AH60) -> 1277 | AG73: =SUM(R67,AE57,AI57,AE60,AI60) -> 2667 | AH73: =SUM(AF73,AG73) -> 3944
A75: TDA: Trastorno por Déficit de Atención
A76: TDA-H: Trastorno por Déficit de Atención e Hiperactividad

Sheet Población beneficiaria AS 2024
V1: Subsecretaría de Educación Básica Dirección General de Desarrollo Curricular Dirección de Fortalecimiento Curricular para la Formación Personal y Social en la Educación Básica Educación Especial
A6: Información cuantitativa respecto a la población con aptitudes sobresalientes que atienden los servicios de educación especial que fueron focalizados y beneficiados en este trimestre en su entidad, por sexo y tipo de condición:
A8: Población con aptitudes sobresalientes que se ha visto beneficiada en el trimestre por acciones a los servicios de educación especial en el Componente 1
A9: Condición | B9: Beneficiarias/os por condición y por SEE | H9: Población total beneficiaria | K9: De la población total reportada por condición, especifique si se trata de alguna de las siguientes poblaciones
B10: USAER | E10: Otro | H10: M | I10: H | J10: TOTAL | K10: Población indígena | N10: Población afrodescendiente | Q10: Población migrante | U10: Estudiantes beneficiados aptitudes sobresalientes
B11: M | C11: H | D11: TOTAL | E11: M | F11: H | G11: TOTAL | K11: M | L11: H | M11: TOTAL | N11: M | O11: H | P11: TOTAL | Q11: M | R11: H | S11: TOTAL | U11: CAPEP | Y11: UAEBH
A12: AS Intelectual | B12: 0 | C12: 0 | D12: =SUM(B12:C12) -> 0 | E12: 0 | F12: 0 | G12: =SUM(E12:F12) -> 0 | H12: =SUM(B12,E12) -> 0 | I12: =SUM(C12,F12) -> 0 | J12: =SUM(H12:I12) -> 0 | K12: 0 | L12: 0 | M12: =SUM(K12:L12) -> 0 | N12: 0 | O12: 0 | P12: =SUM(N12:O12) -> 0 | Q12: 0 | R12: 0 | S12: =SUM(Q12:R12) -> 0 | U12: M | V12: H | W12: TOTAL | Y12: M | Z12: H | AA12: TOTAL
A13: AS Creativa | B13: 0 | C13: 0 | D13: 0 | E13: 0 | F13: 0 | G13: 0 | H13: =SUM(B13,E13) -> 0 | I13: =SUM(C13,F13) -> 0 | J13: =SUM(H13:I13) -> 0 | K13: 0 | L13: 0 | M13: 0 | N13: 0 | O13: 0 | P13: 0 | Q13: 0 | R13: 0 | S13: 0 | U13: 0 | V13: 0 | W13: =SUM(U13,V13) -> 0 | Y13: 0 | Z13: 0 | AA13: =SUM(Y13,Z13) -> 0
A14: AS Artística | B14: 0 | C14: 0 | D14: 0 | E14: 0 | F14: 0 | G14: 0 | H14: 0 | I14: 0 | J14: 0 | K14: 0 | L14: 0 | M14: 0 | N14: 0 | O14: 0 | P14: 0 | Q14: 0 | R14: 0 | S14: 0 | U14: CRIE | Y14: UOP
A15: AS Psicomotriz | B15: 0 | C15: 0 | D15: 0 | E15: 0 | F15: 0 | G15: 0 | H15: 0 | I15: 0 | J15: 0 | K15: 0 | L15: 0 | M15: 0 | N15: 0 | O15: 0 | P15: 0 | Q15: 0 | R15: 0 | S15: 0 | U15: M | V15: H | W15: TOTAL | Y15: M | Z15: H | AA15: TOTAL
A16: AS Socioafectiva | B16: 0 | C16: 0 | D16: 0 | E16: 0 | F16: 0 | G16: 0 | H16: 0 | I16: 0 | J16: 0 | K16: 0 | L16: 0 | M16: 0 | N16: 0 | O16: 0 | P16: 0 | Q16: 0 | R16: 0 | S16: 0 | U16: 0 | V16: 0 | W16: =SUM(U16,V16) -> 0 | Y16: 0 | Z16: 0 | AA16: =SUM(Y16,Z16) -> 0
A17: Totales | B17: =SUM(B12:B16) -> 0 | C17: =SUM(C12:C16) -> 0 | D17: 0 | E17: =SUM(E12:E16) -> 0 | F17: =SUM(F12:F16) -> 0 | G17: 0 | H17: =SUM(H12:H16) -> 0 | I17: =SUM(I12:I16) -> 0 | J17: 0 | K17: =SUM(K12:K16) -> 0 | L17: =SUM(L12:L16) -> 0 | M17: 0 | N17: =SUM(N12:N16) -> 0 | O17: =SUM(O12:O16) -> 0 | P17: 0 | Q17: =SUM(Q12:Q16) -> 0 | R17: =SUM(R12:R16) -> 0 | S17: 0 | U17: Personal docente y/o directivos beneficiados
U18: CRIE | Y18: UOP
U19: M | V19: H | W19: TOTAL | Y19: M | Z19: H | AA19: TOTAL
U20: 0 | V20: 0 | W20: =SUM(U20,V20) -> 0 | Y20: 0 | Z20: 0 | AA20: =SUM(Y20,Z20) -> 0
U21: Familias y/o público en general beneficiados
U22: CRIE | Y22: UOP
P23: Total de estudiantes con aptitudes sobresalientes beneficiados | U23: M | V23: H | W23: TOTAL | Y23: M | Z23: H | AA23: TOTAL
U24: 0 | V24: 0 | W24: =SUM(U24,V24) -> 0 | Y24: 0 | Z24: 0 | AA24: =SUM(Y24,Z24) -> 0
P25: M | Q25: H | R25: Total
P26: =SUM(B17,E17,U13,Y13,U16,Y16) -> 0 | Q26: =SUM(C17,F17,V13,Z13,V16,Z16) -> 0 | R26: 0
A28: Población con aptitudes sobresalientes que se ha visto beneficiada en el trimestre por acciones a los servicios de educación especial en el Componente 2
A29: Condición | B29: Beneficiarias/os por condición y por SEE | H29: Población total beneficiaria | K29: De la población total reportada por condición, especifique si se trata de alguna de las siguientes poblaciones
B30: USAER | E30: Otro | H30: M | I30: H | J30: TOTAL | K30: Población indígena | N30: Población afrodescendiente | Q30: Población migrante | U30: Estudiantes beneficiados aptitudes sobresalientes
B31: M | C31: H | D31: TOTAL | E31: M | F31: H | G31: TOTAL | K31: M | L31: H | M31: TOTAL | N31: M | O31: H | P31: TOTAL | Q31: M | R31: H | S31: TOTAL | U31: CAPEP | Y31: UAEBH
A32: AS Intelectual | B32: 0 | C32: 0 | D32: =SUM(B32:C32) -> 0 | E32: 0 | F32: 0 | G32: =SUM(E32:F32) -> 0 | H32: 0 | I32: 0 | J32: =SUM(H32:I32) -> 0 | K32: 0 | L32: 0 | M32: =SUM(K32:L32) -> 0 | N32: 0 | O32: 0 | P32: =SUM(N32:O32) -> 0 | Q32: 0 | R32: 0 | S32: =SUM(Q32:R32) -> 0 | U32: M | V32: H | W32: TOTAL | Y32: M | Z32: H | AA32: TOTAL
A33: AS Creativa | B33: 0 | C33: 0 | D33: 0 | E33: 0 | F33: 0 | G33: 0 | H33: 0 | I33: 0 | J33: 0 | K33: 0 | L33: 0 | M33: 0 | N33: 0 | O33: 0 | P33: 0 | Q33: 0 | R33: 0 | S33: 0 | U33: 0 | V33: 0 | W33: =SUM(U33,V33) -> 0 | Y33: 0 | Z33: 0 | AA33: =SUM(Y33,Z33) -> 0
A34: AS Artística | B34: 0 | C34: 0 | D34: 0 | E34: 0 | F34: 0 | G34: 0 | H34: =SUM(B34,E34) -> 0 | I34: =SUM(C34,F34) -> 0 | J34: 0 | K34: 0 | L34: 0 | M34: 0 | N34: 0 | O34: 0 | P34: 0 | Q34: 0 | R34: 0 | S34: 0 | U34: CRIE | Y34: UOP
A35: AS Psicomotriz | B35: 0 | C35: 0 | D35: 0 | E35: 0 | F35: 0 | G35: 0 | H35: 0 | I35: 0 | J35: 0 | K35: 0 | L35: 0 | M35: 0 | N35: 0 | O35: 0 | P35: 0 | Q35: 0 | R35: 0 | S35: 0 | U35: M | V35: H | W35: TOTAL | Y35: M | Z35: H | AA35: TOTAL
A36: AS Socioafectiva | B36: 0 | C36: 0 | D36: 0 | E36: 0 | F36: 0 | G36: 0 | H36: 0 | I36: 0 | J36: 0 | K36: 0 | L36: 0 | M36: 0 | N36: 0 | O36: 0 | P36: 0 | Q36: 0 | R36: 0 | S36: 0 | U36: 0 | V36: 0 | W36: =SUM(U36,V36) -> 0 | Y36: 0 | Z36: 0 | AA36: =SUM(Y36,Z36) -> 0
A37: Totales | B37: =SUM(B32:B36) -> 0 | C37: =SUM(C32:C36) -> 0 | D37: 0 | E37: =SUM(E32:E36) -> 0 | F37: =SUM(F32:F36) -> 0 | G37: 0 | H37: =SUM(H32:H36) -> 0 | I37: =SUM(I32:I36) -> 0 | J37: =SUM(H37:I37) -> 0 | K37: =SUM(K32:K36) -> 0 | L37: =SUM(L32:L36) -> 0 | M37: 0 | N37: =SUM(N32:N36) -> 0 | O37: =SUM(O32:O36) -> 0 | P37: 0 | Q37: =SUM(Q32:Q36) -> 0 | R37: =SUM(R32:R36) -> 0 | S37: 0 | U37: Personal docente y/o directivos beneficiados
U38: CRIE | Y38: UOP
U39: M | V39: H | W39: TOTAL | Y39: M | Z39: H | AA39: TOTAL
U40: 0 | V40: 0 | W40: =SUM(U40,V40) -> 0 | Y40: 0 | Z40: 0 | AA40: =SUM(Y40,Z40) -> 0
U41: Familias y/o público en general beneficiados
U42: CRIE | Y42: UOP
P43: Total de estudiantes con aptitudes sobresalientes beneficiados | U43: M | V43: H | W43: TOTAL | Y43: M | Z43: H | AA43: TOTAL
U44: 0 | V44: 0 | W44: =SUM(U44,V44) -> 0 | Y44: 0 | Z44: 0 | AA44: =SUM(Y44,Z44) -> 0
P45: M | Q45: H | R45: Total
P46: =SUM(B37,E37,U33,Y33,U36,Y36) -> 0 | Q46: =SUM(C37,F37,V33,Z33,V36,Z36) -> 0 | R46: =SUM(D37,G37,W33,AA33,W36,AA36) -> 0
A48: Población con aptitudes sobresalientes que se ha visto beneficiada en el trimestre por acciones a los servicios de educación especial en el Componente 3
A49: Condición | B49: Beneficiarias/os por condición y por SEE | H49: Población total beneficiaria | K49: De la población total reportada por condición, especifique si se trata de alguna de las siguientes poblaciones
B50: USAER | E50: Otro | H50: M | I50: H | J50: TOTAL | K50: Población indígena | N50: Población afrodescendiente | Q50: Población migrante | U50: Estudiantes beneficiados aptitudes sobresalientes
B51: M | C51: H | D51: TOTAL | E51: M | F51: H | G51: TOTAL | K51: M | L51: H | M51: TOTAL | N51: M | O51: H | P51: TOTAL | Q51: M | R51: H | S51: TOTAL | U51: CAPEP | Y51: UAEBH
A52: AS Intelectual | B52: 179 | C52: 220 | D52: =SUM(B52:C52) -> 399 | E52: 0 | F52: 0 | G52: =SUM(E52:F52) -> 0 | H52: =SUM(B52,E52) -> 179 | I52: =SUM(C52,F52) -> 220 | J52: =SUM(H52:I52) -> 399 | K52: 0 | L52: 0 | M52: =SUM(K52:L52) -> 0 | N52: 0 | O52: 0 | P52: =SUM(N52:O52) -> 0 | Q52: 0 | R52: 0 | S52: =SUM(Q52:R52) -> 0 | U52: M | V52: H | W52: TOTAL | Y52: M | Z52: H | AA52: TOTAL
A53: AS Creativa | B53: 208 | C53: 224 | D53: 432 | E53: 0 | F53: 0 | G53: 0 | H53: =SUM(B53,E53) -> 208 | I53: =SUM(C53,F53) -> 224 | J53: 432 | K53: 0 | L53: 0 | M53: 0 | N53: 0 | O53: 0 | P53: 0 | Q53: 0 | R53: 0 | S53: 0 | U53: 0 | V53: 0 | W53: =SUM(U53,V53) -> 0 | Y53: 0 | Z53: 0 | AA53: =SUM(Y53,Z53) -> 0
A54: AS Artística | B54: 86 | C54: 56 | D54: 142 | E54: 0 | F54: 0 | G54: 0 | H54: 86 | I54: 56 | J54: 142 | K54: 0 | L54: 0 | M54: 0 | N54: 0 | O54: 0 | P54: 0 | Q54: 0 | R54: 0 | S54: 0 | U54: CRIE | Y54: UOP
A55: AS Psicomotriz | B55: 15 | C55: 37 | D55: 52 | E55: 0 | F55: 0 | G55: 0 | H55: 15 | I55: 37 | J55: 52 | K55: 0 | L55: 0 | M55: 0 | N55: 0 | O55: 0 | P55: 0 | Q55: 0 | R55: 0 | S55: 0 | U55: M | V55: H | W55: TOTAL | Y55: M | Z55: H | AA55: TOTAL
A56: AS Socioafectiva | B56: 34 | C56: 0 | D56: 34 | E56: 0 | F56: 0 | G56: 0 | H56: 34 | I56: 0 | J56: 34 | K56: 0 | L56: 0 | M56: 0 | N56: 0 | O56: 0 | P56: 0 | Q56: 0 | R56: 0 | S56: 0 | U56: 0 | V56: 0 | W56: =SUM(U56,V56) -> 0 | Y56: 0 | Z56: 0 | AA56: =SUM(Y56,Z56) -> 0
A57: Totales | B57: =SUM(B52:B56) -> 522 | C57: =SUM(C52:C56) -> 537 | D57: 1059 | E57: =SUM(E52:E56) -> 0 | F57: =SUM(F52:F56) -> 0 | G57: 0 | H57: =SUM(H52:H56) -> 522 | I57: =SUM(I52:I56) -> 537 | J57: =SUM(H57:I57) -> 1059 | K57: =SUM(K52:K56) -> 0 | L57: =SUM(L52:L56) -> 0 | M57: 0 | N57: =SUM(N52:N56) -> 0 | O57: =SUM(O52:O56) -> 0 | P57: 0 | Q57: =SUM(Q52:Q56) -> 0 | R57: =SUM(R52:R56) -> 0 | S57: 0 | U57: Personal docente y/o directivos beneficiados
U58: CRIE | Y58: UOP
U59: M | V59: H | W59: TOTAL | Y59: M | Z59: H | AA59: TOTAL
U60: 0 | V60: 0 | W60: =SUM(U60,V60) -> 0 | Y60: 0 | Z60: 0 | AA60: =SUM(Y60,Z60) -> 0
U61: Familias y/o público en general beneficiados
U62: CRIE | Y62: UOP
P63: Total de estudiantes con aptitudes sobresalientes beneficiados | U63: M | V63: H | W63: TOTAL | Y63: M | Z63: H | AA63: TOTAL
U64: 0 | V64: 0 | W64: =SUM(U64,V64) -> 0 | Y64: 0 | Z64: 0 | AA64: =SUM(Y64,Z64) -> 0
P65: M | Q65: H | R65: Total
P66: =SUM(B57,E57,U53,Y53,U56,Y56) -> 522 | Q66: =SUM(C57,F57,V53,Z53,V56,Z56) -> 537 | R66: =SUM(D57,G57,W53,AA53,W56,AA56) -> 1059
A68: AS: Aptitudes sobresalientes

Sheet 1. Acciones académicas (DIS)
A1: Subsecretaría de Educación Básica Dirección General de Desarrollo Curricular Dirección de Fortalecimiento Curricular para la Formación Personal y Social en la Educación Básica Educación Especial
A6: Componente: 1. Acciones académicas para Agentes educativos en temas de discapacidad
A7: 1.1 Desarrollo de acciones de actualización y fortalecimiento académico de Agentes educativos en temas de discapacidad
B8: SEE beneficiados en el trimestre. Componente 1: | E8: USAER | F8: ='Servicios EE 2024'!B11 -> 81 | G8: CAM básico | H8: ='Servicios EE 2024'!C11 -> 0 | I8: Básico FpT | J8: ='Servicios EE 2024'!C13 -> 28 | K8: CAM laboral | L8: ='Servicios EE 2024'!D11 -> 2 | M8: CAPEP | N8: ='Servicios EE 2024'!E11 -> 0 | O8: CRIE | P8: ='Servicios EE 2024'!F11 -> 0 | Q8: UOP | R8: ='Servicios EE 2024'!G11 -> 0 | S8: UAEBH | T8: ='Servicios EE 2024'!H11 -> 0 | U8: Otro | V8: ='Servicios EE 2024'!I11 -> 0
A10: Numero de actividad | C10: 1.1.1
A11: Nivel de avance de la actividad | C11: Título de la actividad | I11: Diplomado en Neuroeducación | AD11: Describa brevemente el impacto pedagógico que se obtuvo con esta acción
C12: USAER | F12: CAM básico | I12: CAM básico con FpT | L12: CAM laboral | O12: CAPEP | R12: CRIE | U12: UOP | X12: UAEBH | AA12: Otro
A13: En desarrollo | C13: SEE: | D13: 81 | F13: SEE: | G13: 0 | I13: SEE: | J13: 0 | L13: SEE: | M13: 0 | O13: SEE: | P13: 0 | R13: SEE: | S13: 0 | U13: SEE: | V13: 0 | X13: SEE: | Y13: 0 | AA13: SEE: | AB13: 0 | AD13: Se contribuyó a que el personal directivo, docente y paradocente se faboreciera en cuanto a su profecionalización y mejora contínua, a traves de la formación en neuroeducación.
C14: M | D14: H | E14: T | F14: M | G14: H | H14: T | I14: M | J14: H | K14: T | L14: M | M14: H | N14: T | O14: M | P14: H | Q14: T | R14: M | S14: H | T14: T | U14: M | V14: H | W14: T | X14: M | Y14: H | Z14: T | AA14: M | AB14: H | AC14: T
A15: Supervisores | C15: 2 | D15: 1 | E15: =SUM(C15,D15) -> 3 | F15: 0 | G15: 0 | H15: =SUM(F15,G15) -> 0 | I15: 0 | J15: 0 | K15: =SUM(I15,J15) -> 0 | L15: 0 | M15: 0 | N15: =SUM(L15,M15) -> 0 | O15: 0 | P15: 0 | Q15: =SUM(O15,P15) -> 0 | R15: 0 | S15: 0 | T15: =SUM(R15,S15) -> 0 | U15: 0 | V15: 0 | W15: =SUM(U15,V15) -> 0 | X15: 0 | Y15: 0 | Z15: =SUM(X15,Y15) -> 0 | AA15: 0 | AB15: 0 | AC15: =SUM(AA15,AB15) -> 0
A16: Directivas/os | C16: 30 | D16: 12 | E16: 42 | F16: 0 | G16: 0 | H16: 0 | I16: 0 | J16: 0 | K16: 0 | L16: 0 | M16: 0 | N16: 0 | O16: 0 | P16: 0 | Q16: 0 | R16: 0 | S16: 0 | T16: 0 | U16: 0 | V16: 0 | W16: 0 | X16: 0 | Y16: 0 | Z16: 0 | AA16: 0 | AB16: 0 | AC16: 0
A17: Docentes | C17: 46 | D17: 23 | E17: 69 | F17: 0 | G17: 0 | H17: 0 | I17: 0 | J17: 0 | K17: 0 | L17: 0 | M17: 0 | N17: 0 | O17: 0 | P17: 0 | Q17: 0 | R17: 0 | S17: 0 | T17: 0 | U17: 0 | V17: 0 | W17: 0 | X17: 0 | Y17: 0 | Z17: 0 | AA17: 0 | AB17: 0 | AC17: 0
A18: Equipo de apoyo | C18: 16 | D18: 7 | E18: 23 | F18: 0 | G18: 0 | H18: 0 | I18: 0 | J18: 0 | K18: 0 | L18: 0 | M18: 0 | N18: 0 | O18: 0 | P18: 0 | Q18: 0 | R18: 0 | S18: 0 | T18: 0 | U18: 0 | V18: 0 | W18: 0 | X18: 0 | Y18: 0 | Z18: 0 | AA18: 0 | AB18: 0 | AC18: 0
A19: Familias | C19: 0 | D19: 0 | E19: 0 | F19: 0 | G19: 0 | H19: 0 | I19: 0 | J19: 0 | K19: 0 | L19: 0 | M19: 0 | N19: 0 | O19: 0 | P19: 0 | Q19: 0 | R19: 0 | S19: 0 | T19: 0 | U19: 0 | V19: 0 | W19: 0 | X19: 0 | Y19: 0 | Z19: 0 | AA19: 0 | AB19: 0 | AC19: 0
A20: Docentes de EB | C20: 0 | D20: 0 | E20: =SUM(C20,D20) -> 0 | F20: 0 | G20: 0 | H20: =SUM(F20,G20) -> 0 | I20: 0 | J20: 0 | K20: =SUM(I20,J20) -> 0 | L20: 0 | M20: 0 | N20: =SUM(L20,M20) -> 0 | O20: 0 | P20: 0 | Q20: =SUM(O20,P20) -> 0 | R20: 0 | S20: 0 | T20: =SUM(R20,S20) -> 0 | U20: 0 | V20: 0 | W20: =SUM(U20,V20) -> 0 | X20: 0 | Y20: 0 | Z20: =SUM(X20,Y20) -> 0 | AA20: 0 | AB20: 0 | AC20: =SUM(AA20,AB20) -> 0
A21: Otros | C21: 11 | D21: 2 | E21: 13 | F21: 0 | G21: 0 | H21: 0 | I21: 0 | J21: 0 | K21: 0 | L21: 0 | M21: 0 | N21: 0 | O21: 0 | P21: 0 | Q21: 0 | R21: 0 | S21: 0 | T21: 0 | U21: 0 | V21: 0 | W21: 0 | X21: 0 | Y21: 0 | Z21: 0 | AA21: 0 | AB21: 0 | AC21: 0
A22: TOTAL | C22: =SUM(C14:C21) -> 105 | D22: 45 | E22: 150 | F22: 0 | G22: 0 | H22: 0 | I22: 0 | J22: 0 | K22: 0 | L22: 0 | M22: 0 | N22: 0 | O22: 0 | P22: 0 | Q22: 0 | R22: 0 | S22: 0 | T22: 0 | U22: 0 | V22: 0 | W22: 0 | X22: 0 | Y22: 0 | Z22: 0 | AA22: 0 | AB22: 0 | AC22: 0
A24: En caso de requerir alguna precisión o aclaración, describa brevemente: | V24: En caso de modificación, indique número de oficio:
A25: CONVENIO FIRMADO, TOMA DE ACUERDOS Y ENCUADRE, CONFORMACIÓN DE GRUPOS, CON TÉRMINO MARZO DE 2025 | V25: N/A
A29: Numero de actividad | C29: 1.1.2
A30: Nivel de avance de la actividad | C30: Título de la actividad | I30: Conferencias en Educación Inclusiva | AD30: Describa brevemente el impacto pedagógico que se obtuvo con esta acción
C31: USAER | F31: CAM básico | I31: CAM básico con FpT | L31: CAM laboral | O31: CAPEP | R31: CRIE | U31: UOP | X31: UAEBH | AA31: Otro
A32: Realizada | C32: SEE: | D32: 81 | F32: SEE: | G32: 0 | I32: SEE: | J32: 28 | L32: SEE: | M32: 2 | O32: SEE: | P32: 0 | R32: SEE: | S32: 0 | U32: SEE: | V32: 0 | X32: SEE: | Y32: 0 | AA32: SEE: | AB32: 0 | AD32: Se propiciaron espacios de reflexión docente con diversas temáticas de impacto en el desempeño en atención a la diversidad.
C33: M | D33: H | E33: T | F33: M | G33: H | H33: T | I33: M | J33: H | K33: T | L33: M | M33: H | N33: T | O33: M | P33: H | Q33: T | R33: M | S33: H | T33: T | U33: M | V33: H | W33: T | X33: M | Y33: H | Z33: T | AA33: M | AB33: H | AC33: T
A34: Supervisores | C34: 0 | D34: 0 | E34: =SUM(C34,D34) -> 0 | F34: 0 | G34: 0 | H34: =SUM(F34,G34) -> 0 | I34: 0 | J34: 0 | K34: =SUM(I34,J34) -> 0 | L34: 0 | M34: 0 | N34: =SUM(L34,M34) -> 0 | O34: 0 | P34: 0 | Q34: =SUM(O34,P34) -> 0 | R34: 0 | S34: 0 | T34: =SUM(R34,S34) -> 0 | U34: 0 | V34: 0 | W34: =SUM(U34,V34) -> 0 | X34: 0 | Y34: 0 | Z34: =SUM(X34,Y34) -> 0 | AA34: 0 | AB34: 0 | AC34: =SUM(AA34,AB34) -> 0
A35: Directivas/os | C35: 57 | D35: 24 | E35: 81 | F35: 0 | G35: 0 | H35: 0 | I35: 22 | J35: 6 | K35: 28 | L35: 2 | M35: 0 | N35: 2 | O35: 0 | P35: 0 | Q35: 0 | R35: 0 | S35: 0 | T35: 0 | U35: 0 | V35: 0 | W35: 0 | X35: 0 | Y35: 0 | Z35: 0 | AA35: 0 | AB35: 0 | AC35: 0
A36: Docentes | C36: 150 | D36: 50 | E36: 200 | F36: 0 | G36: 0 | H36: 0 | I36: 100 | J36: 44 | K36: 144 | L36: 0 | M36: 0 | N36: 0 | O36: 0 | P36: 0 | Q36: 0 | R36: 0 | S36: 0 | T36: 0 | U36: 0 | V36: 0 | W36: 0 | X36: 0 | Y36: 0 | Z36: 0 | AA36: 0 | AB36: 0 | AC36: 0
A37: Equipo de apoyo | C37: 50 | D37: 20 | E37: 70 | F37: 0 | G37: 0 | H37: 0 | I37: 20 | J37: 10 | K37: 30 | L37: 0 | M37: 0 | N37: 0 | O37: 0 | P37: 0 | Q37: 0 | R37: 0 | S37: 0 | T37: 0 | U37: 0 | V37: 0 | W37: 0 | X37: 0 | Y37: 0 | Z37: 0 | AA37: 0 | AB37: 0 | AC37: 0
A38: Familias | C38: 0 | D38: 0 | E38: 0 | F38: 0 | G38: 0 | H38: 0 | I38: 0 | J38: 0 | K38: 0 | L38: 0 | M38: 0 | N38: 0 | O38: 0 | P38: 0 | Q38: 0 | R38: 0 | S38: 0 | T38: 0 | U38: 0 | V38: 0 | W38: 0 | X38: 0 | Y38: 0 | Z38: 0 | AA38: 0 | AB38: 0 | AC38: 0
A39: Docentes de EB | C39: 50 | D39: 50 | E39: 100 | F39: 0 | G39: 0 | H39: 0 | I39: 0 | J39: 0 | K39: 0 | L39: 0 | M39: 0 | N39: 0 | O39: 0 | P39: 0 | Q39: 0 | R39: 0 | S39: 0 | T39: 0 | U39: 0 | V39: 0 | W39: 0 | X39: 0 | Y39: 0 | Z39: 0 | AA39: 0 | AB39: 0 | AC39: 0
A40: Otros | C40: 14 | D40: 5 | E40: 19 | F40: 0 | G40: 0 | H40: 0 | I40: 0 | J40: 0 | K40: 0 | L40: 0 | M40: 0 | N40: 0 | O40: 0 | P40: 0 | Q40: 0 | R40: 0 | S40: 0 | T40: 0 | U40: 0 | V40: 0 | W40: 0 | X40: 0 | Y40: 0 | Z40: 0 | AA40: 0 | AB40: 0 | AC40: 0
A41: TOTAL | C41: =SUM(C33:C40) -> 321 | D41: 149 | E41: 470 | F41: 0 | G41: 0 | H41: 0 | I41: 142 | J41: 60 | K41: 202 | L41: 2 | M41: 0 | N41: 2 | O41: 0 | P41: 0 | Q41: 0 | R41: 0 | S41: 0 | T41: 0 | U41: 0 | V41: 0 | W41: 0 | X41: 0 | Y41: 0 | Z41: 0 | AA41: 0 | AB41: 0 | AC41: 0
A43: En caso de requerir alguna precisión o aclaración, describa brevemente: | V43: En caso de modificación, indique número de oficio:
A44: N/A | V44: N/A
A48: Numero de actividad | C48: 1.1.3
A49: Nivel de avance de la actividad | C49: Título de la actividad | I49: Talleres: Educación Inclusiva | AD49: Describa brevemente el impacto pedagógico que se obtuvo con esta acción
C50: USAER | F50: CAM básico | I50: CAM básico con FpT | L50: CAM laboral | O50: CAPEP | R50: CRIE | U50: UOP | X50: UAEBH | AA50: Otro
A51: Realizada | C51: SEE: | D51: 81 | F51: SEE: | G51: 0 | I51: SEE: | J51: 28 | L51: SEE: | M51: 2 | O51: SEE: | P51: 0 | R51: SEE: | S51: 0 | U51: SEE: | V51: 0 | X51: SEE: | Y51: 0 | AA51: SEE: | AB51: 0 | AD51: Se capacitó a los maestros en el diseño e implementación de estrategias didacticas, por lo cual, los alumnos beneficiarios favorecerán su proceso de aprendizaje.
C52: M | D52: H | E52: T | F52: M | G52: H | H52: T | I52: M | J52: H | K52: T | L52: M | M52: H | N52: T | O52: M | P52: H | Q52: T | R52: M | S52: H | T52: T | U52: M | V52: H | W52: T | X52: M | Y52: H | Z52: T | AA52: M | AB52: H | AC52: T
A53: Supervisores | C53: 0 | D53: 0 | E53: =SUM(C53,D53) -> 0 | F53: 0 | G53: 0 | H53: =SUM(F53,G53) -> 0 | I53: 0 | J53: 0 | K53: =SUM(I53,J53) -> 0 | L53: 0 | M53: 0 | N53: =SUM(L53,M53) -> 0 | O53: 0 | P53: 0 | Q53: =SUM(O53,P53) -> 0 | R53: 0 | S53: 0 | T53: =SUM(R53,S53) -> 0 | U53: 0 | V53: 0 | W53: =SUM(U53,V53) -> 0 | X53: 0 | Y53: 0 | Z53: =SUM(X53,Y53) -> 0 | AA53: 0 | AB53: 0 | AC53: =SUM(AA53,AB53) -> 0
A54: Directivas/os | C54: 57 | D54: 24 | E54: 81 | F54: 0 | G54: 0 | H54: 0 | I54: 22 | J54: 6 | K54: 28 | L54: 2 | M54: 0 | N54: 2 | O54: 0 | P54: 0 | Q54: 0 | R54: 0 | S54: 0 | T54: 0 | U54: 0 | V54: 0 | W54: 0 | X54: 0 | Y54: 0 | Z54: 0 | AA54: 0 | AB54: 0 | AC54: 0
A55: Docentes | C55: 150 | D55: 50 | E55: 200 | F55: 0 | G55: 0 | H55: 0 | I55: 100 | J55: 44 | K55: 144 | L55: 0 | M55: 0 | N55: 0 | O55: 0 | P55: 0 | Q55: 0 | R55: 0 | S55: 0 | T55: 0 | U55: 0 | V55: 0 | W55: 0 | X55: 0 | Y55: 0 | Z55: 0 | AA55: 0 | AB55: 0 | AC55: 0
A56: Equipo de apoyo | C56: 50 | D56: 20 | E56: 70 | F56: 0 | G56: 0 | H56: 0 | I56: 20 | J56: 10 | K56: 30 | L56: 0 | M56: 0 | N56: 0 | O56: 0 | P56: 0 | Q56: 0 | R56: 0 | S56: 0 | T56: 0 | U56: 0 | V56: 0 | W56: 0 | X56: 0 | Y56: 0 | Z56: 0 | AA56: 0 | AB56: 0 | AC56: 0
A57: Familias | C57: 0 | D57: 0 | E57: 0 | F57: 0 | G57: 0 | H57: 0 | I57: 0 | J57: 0 | K57: 0 | L57: 0 | M57: 0 | N57: 0 | O57: 0 | P57: 0 | Q57: 0 | R57: 0 | S57: 0 | T57: 0 | U57: 0 | V57: 0 | W57: 0 | X57: 0 | Y57: 0 | Z57: 0 | AA57: 0 | AB57: 0 | AC57: 0
A58: Docentes de EB | C58: 50 | D58: 50 | E58: 100 | F58: 0 | G58: 0 | H58: 0 | I58: 0 | J58: 0 | K58: 0 | L58: 0 | M58: 0 | N58: 0 | O58: 0 | P58: 0 | Q58: 0 | R58: 0 | S58: 0 | T58: 0 | U58: 0 | V58: 0 | W58: 0 | X58: 0 | Y58: 0 | Z58: 0 | AA58: 0 | AB58: 0 | AC58: 0
A59: Otros | C59: 14 | D59: 5 | E59: 19 | F59: 0 | G59: 0 | H59: 0 | I59: 0 | J59: 0 | K59: 0 | L59: 0 | M59: 0 | N59: 0 | O59: 0 | P59: 0 | Q59: 0 | R59: 0 | S59: 0 | T59: 0 | U59: 0 | V59: 0 | W59: 0 | X59: 0 | Y59: 0 | Z59: 0 | AA59: 0 | AB59: 0 | AC59: 0
A60: TOTAL | C60: =SUM(C52:C59) -> 321 | D60: 149 | E60: 470 | F60: 0 | G60: 0 | H60: 0 | I60: 142 | J60: 60 | K60: 202 | L60: 2 | M60: 0 | N60: 2 | O60: 0 | P60: 0 | Q60: 0 | R60: 0 | S60: 0 | T60: 0 | U60: 0 | V60: 0 | W60: 0 | X60: 0 | Y60: 0 | Z60: 0 | AA60: 0 | AB60: 0 | AC60: 0
A62: En caso de requerir alguna precisión o aclaración, describa brevemente: | V62: En caso de modificación, indique número de oficio:
A63: N/A | V63: N/A

Sheet 1. Acciones académicas (AS)
A1: Subsecretaría de Educación Básica Dirección General de Desarrollo Curricular Dirección de Fortalecimiento Curricular para la Formación Personal y Social en la Educación Básica Educación Especial
A6: Componente: 1. Acciones académicas para Agentes educativos en temas de aptitudes sobresalientes
A7: 1.1 Desarrollo de acciones de actualización y fortalecimiento académico de Agentes educativos en temas de aptitudes sobresalientes
B8: SEE beneficiados en el trimestre. Componente 1: | E8: USAER | F8: ='Servicios EE 2024'!M11 -> 81 | G8: CAPEP | H8: ='Servicios EE 2024'!N11 -> 0 | I8: CRIE | J8: ='Servicios EE 2024'!O11 -> 0 | K8: UOP | L8: ='Servicios EE 2024'!P11 -> 0 | M8: UAEBH | N8: ='Servicios EE 2024'!Q11 -> 0 | O8: Otro | P8: ='Servicios EE 2024'!R11 -> 0
A10: Numero de actividad | C10: 1.1.1
A11: Nivel de avance de la actividad | C11: Título de la actividad | G11: Diplomado en atención a niños con aptitudes sobresalientes. | U11: Describa brevemente el impacto pedagógico que se obtuvo con esta acción
C12: USAER | F12: CAPEP | I12: CRIE | L12: UOP | O12: UAEBH | R12: Otro
A13: Realizada | C13: SEE: | D13: 81 | F13: SEE: | G13: 0 | I13: SEE: | J13: 0 | L13: SEE: | M13: 0 | O13: SEE: | P13: 0 | R13: SEE: | S13: 0 | U13: Se favoreció el proceso de diagnóstico y atención de los alumnos con aptitudes sobresalientes, de acuerdo con los lineamientos nacionales y contextualizado.
C14: M | D14: H | E14: T | F14: M | G14: H | H14: T | I14: M | J14: H | K14: T | L14: M | M14: H | N14: T | O14: M | P14: H | Q14: T | R14: M | S14: H | T14: T
A15: Supervisores | C15: 0 | D15: 0 | E15: =SUM(C15,D15) -> 0 | F15: 0 | G15: 0 | H15: =SUM(F15,G15) -> 0 | I15: 0 | J15: 0 | K15: =SUM(I15,J15) -> 0 | L15: 0 | M15: 0 | N15: =SUM(L15,M15) -> 0 | O15: 0 | P15: 0 | Q15: =SUM(O15,P15) -> 0 | R15: 0 | S15: 0 | T15: =SUM(R15,S15) -> 0
A16: Directivas/os | C16: 7 | D16: 7 | E16: 14 | F16: 0 | G16: 0 | H16: 0 | I16: 0 | J16: 0 | K16: 0 | L16: 0 | M16: 0 | N16: 0 | O16: 0 | P16: 0 | Q16: 0 | R16: 0 | S16: 0 | T16: 0
A17: Docentes | C17: 64 | D17: 63 | E17: 127 | F17: 0 | G17: 0 | H17: 0 | I17: 0 | J17: 0 | K17: 0 | L17: 0 | M17: 0 | N17: 0 | O17: 0 | P17: 0 | Q17: 0 | R17: 0 | S17: 0 | T17: 0
A18: Equipo de apoyo | C18: 7 | D18: 7 | E18: 14 | F18: 0 | G18: 0 | H18: 0 | I18: 0 | J18: 0 | K18: 0 | L18: 0 | M18: 0 | N18: 0 | O18: 0 | P18: 0 | Q18: 0 | R18: 0 | S18: 0 | T18: 0
A19: Familias | C19: 0 | D19: 0 | E19: 0 | F19: 0 | G19: 0 | H19: 0 | I19: 0 | J19: 0 | K19: 0 | L19: 0 | M19: 0 | N19: 0 | O19: 0 | P19: 0 | Q19: 0 | R19: 0 | S19: 0 | T19: 0
A20: Docentes de EB | C20: 25 | D20: 25 | E20: =SUM(C20,D20) -> 50 | F20: 0 | G20: 0 | H20: =SUM(F20,G20) -> 0 | I20: 0 | J20: 0 | K20: =SUM(I20,J20) -> 0 | L20: 0 | M20: 0 | N20: =SUM(L20,M20) -> 0 | O20: 0 | P20: 0 | Q20: =SUM(O20,P20) -> 0 | R20: 0 | S20: 0 | T20: =SUM(R20,S20) -> 0
A21: Otros | C21: 3 | D21: 2 | E21: 5 | F21: 0 | G21: 0 | H21: 0 | I21: 0 | J21: 0 | K21: 0 | L21: 0 | M21: 0 | N21: 0 | O21: 0 | P21: 0 | Q21: 0 | R21: 0 | S21: 0 | T21: 0
A22: TOTAL | C22: =SUM(C14:C21) -> 106 | D22: 104 | E22: 210 | F22: 0 | G22: 0 | H22: 0 | I22: 0 | J22: 0 | K22: 0 | L22: 0 | M22: 0 | N22: 0 | O22: 0 | P22: 0 | Q22: 0 | R22: 0 | S22: 0 | T22: 0
A24: En caso de requerir alguna precisión o aclaración, describa brevemente: | O24: En caso de modificación, indique número de oficio:
A25: N/A | O25: N/A
A29: Numero de actividad | C29: 1.1.2
A30: Nivel de avance de la actividad | C30: Título de la actividad | G30: Taller Enriquecimiento a través del Arte | U30: Describa brevemente el impacto pedagógico que se obtuvo con esta acción
C31: USAER | F31: CAPEP | I31: CRIE | L31: UOP | O31: UAEBH | R31: Otro
A32: Realizada | C32: SEE: | D32: 81 | F32: SEE: | G32: 0 | I32: SEE: | J32: 0 | L32: SEE: | M32: 0 | O32: SEE: | P32: 0 | R32: SEE: | S32: 0 | U32: La capacitación a los agentes educativos en esta temática permitió que los estudiantes que atienden, potencialicen su talento y se satisfagan sus necesidades educativas específicas en el entorno escolar.
C33: M | D33: H | E33: T | F33: M | G33: H | H33: T | I33: M | J33: H | K33: T | L33: M | M33: H | N33: T | O33: M | P33: H | Q33: T | R33: M | S33: H | T33: T
A34: Supervisores | C34: 0 | D34: 0 | E34: =SUM(C34,D34) -> 0 | F34: 0 | G34: 0 | H34: =SUM(F34,G34) -> 0 | I34: 0 | J34: 0 | K34: =SUM(I34,J34) -> 0 | L34: 0 | M34: 0 | N34: =SUM(L34,M34) -> 0 | O34: 0 | P34: 0 | Q34: =SUM(O34,P34) -> 0 | R34: 0 | S34: 0 | T34: =SUM(R34,S34) -> 0
A35: Directivas/os | C35: 0 | D35: 0 | E35: 0 | F35: 0 | G35: 0 | H35: 0 | I35: 0 | J35: 0 | K35: 0 | L35: 0 | M35: 0 | N35: 0 | O35: 0 | P35: 0 | Q35: 0 | R35: 0 | S35: 0 | T35: 0
A36: Docentes | C36: 150 | D36: 30 | E36: 180 | F36: 0 | G36: 0 | H36: 0 | I36: 0 | J36: 0 | K36: 0 | L36: 0 | M36: 0 | N36: 0 | O36: 0 | P36: 0 | Q36: 0 | R36: 0 | S36: 0 | T36: 0
A37: Equipo de apoyo | C37: 0 | D37: 0 | E37: 0 | F37: 0 | G37: 0 | H37: 0 | I37: 0 | J37: 0 | K37: 0 | L37: 0 | M37: 0 | N37: 0 | O37: 0 | P37: 0 | Q37: 0 | R37: 0 | S37: 0 | T37: 0
A38: Familias | C38: 0 | D38: 0 | E38: 0 | F38: 0 | G38: 0 | H38: 0 | I38: 0 | J38: 0 | K38: 0 | L38: 0 | M38: 0 | N38: 0 | O38: 0 | P38: 0 | Q38: 0 | R38: 0 | S38: 0 | T38: 0
A39: Docentes de EB | C39: 0 | D39: 0 | E39: 0 | F39: 0 | G39: 0 | H39: 0 | I39: 0 | J39: 0 | K39: 0 | L39: 0 | M39: 0 | N39: 0 | O39: 0 | P39: 0 | Q39: 0 | R39: 0 | S39: 0 | T39: 0
A40: Otros | C40: 0 | D40: 0 | E40: 0 | F40: 0 | G40: 0 | H40: 0 | I40: 0 | J40: 0 | K40: 0 | L40: 0 | M40: 0 | N40: 0 | O40: 0 | P40: 0 | Q40: 0 | R40: 0 | S40: 0 | T40: 0
A41: TOTAL | C41: =SUM(C33:C40) -> 150 | D41: 30 | E41: 180 | F41: 0 | G41: 0 | H41: 0 | I41: 0 | J41: 0 | K41: 0 | L41: 0 | M41: 0 | N41: 0 | O41: 0 | P41: 0 | Q41: 0 | R41: 0 | S41: 0 | T41: 0
A43: En caso de requerir alguna precisión o aclaración, describa brevemente: | O43: En caso de modificación, indique número de oficio:
A44: N/A | O44: N/A
A48: Numero de actividad | C48: 1.1.3
A49: Nivel de avance de la actividad | C49: Título de la actividad | G49: N/A | U49: Describa brevemente el impacto pedagógico que se obtuvo con esta acción
C50: USAER | F50: CAPEP | I50: CRIE | L50: UOP | O50: UAEBH | R50: Otro
C51: SEE: | D51: 0 | F51: SEE: | G51: 0 | I51: SEE: | J51: 0 | L51: SEE: | M51: 0 | O51: SEE: | P51: 0 | R51: SEE: | S51: 0 | U51: N/A
C52: M | D52: H | E52: T | F52: M | G52: H | H52: T | I52: M | J52: H | K52: T | L52: M | M52: H | N52: T | O52: M | P52: H | Q52: T | R52: M | S52: H | T52: T
A53: Supervisores | C53: 0 | D53: 0 | E53: =SUM(C53,D53) -> 0 | F53: 0 | G53: 0 | H53: =SUM(F53,G53) -> 0 | I53: 0 | J53: 0 | K53: =SUM(I53,J53) -> 0 | L53: 0 | M53: 0 | N53: =SUM(L53,M53) -> 0 | O53: 0 | P53: 0 | Q53: =SUM(O53,P53) -> 0 | R53: 0 | S53: 0 | T53: =SUM(R53,S53) -> 0
A54: Directivas/os | C54: 0 | D54: 0 | E54: 0 | F54: 0 | G54: 0 | H54: 0 | I54: 0 | J54: 0 | K54: 0 | L54: 0 | M54: 0 | N54: 0 | O54: 0 | P54: 0 | Q54: 0 | R54: 0 | S54: 0 | T54: 0
A55: Docentes | C55: 0 | D55: 0 | E55: 0 | F55: 0 | G55: 0 | H55: 0 | I55: 0 | J55: 0 | K55: 0 | L55: 0 | M55: 0 | N55: 0 | O55: 0 | P55: 0 | Q55: 0 | R55: 0 | S55: 0 | T55: 0
A56: Equipo de apoyo | C56: 0 | D56: 0 | E56: 0 | F56: 0 | G56: 0 | H56: 0 | I56: 0 | J56: 0 | K56: 0 | L56: 0 | M56: 0 | N56: 0 | O56: 0 | P56: 0 | Q56: 0 | R56: 0 | S56: 0 | T56: 0
A57: Familias | C57: 0 | D57: 0 | E57: 0 | F57: 0 | G57: 0 | H57: 0 | I57: 0 | J57: 0 | K57: 0 | L57: 0 | M57: 0 | N57: 0 | O57: 0 | P57: 0 | Q57: 0 | R57: 0 | S57: 0 | T57: 0
A58: Docentes de EB | C58: 0 | D58: 0 | E58: 0 | F58: 0 | G58: 0 | H58: 0 | I58: 0 | J58: 0 | K58: 0 | L58: 0 | M58: 0 | N58: 0 | O58: 0 | P58: 0 | Q58: 0 | R58: 0 | S58: 0 | T58: 0
A59: Otros | C59: 0 | D59: 0 | E59: 0 | F59: 0 | G59: 0 | H59: 0 | I59: 0 | J59: 0 | K59: 0 | L59: 0 | M59: 0 | N59: 0 | O59: 0 | P59: 0 | Q59: 0 | R59: 0 | S59: 0 | T59: 0
A60: TOTAL | C60: =SUM(C52:C59) -> 0 | D60: 0 | E60: 0 | F60: 0 | G60: 0 | H60: 0 | I60: 0 | J60: 0 | K60: 0 | L60: 0 | M60: 0 | N60: 0 | O60: 0 | P60: 0 | Q60: 0 | R60: 0 | S60: 0 | T60: 0
A62: En caso de requerir alguna precisión o aclaración, describa brevemente: | O62: En caso de modificación, indique número de oficio:
A63: N/A | O63: N/A
A67: 1.2 Realización de encuentros, cursos, talleres y/o reuniones entre madres y padres de familia y/o tutores de estudiantes con aptitudes sobresalientes para la conformación y la operación de sus redes de apoyo
B68: SEE beneficiados en el trimestre. Componente 1: | E68: USAER | F68: ='Servicios EE 2024'!M11 -> 81 | G68: CAPEP | H68: ='Servicios EE 2024'!N11 -> 0 | I68: CRIE | J68: ='Servicios EE 2024'!O11 -> 0 | K68: UOP | L68: ='Servicios EE 2024'!P11 -> 0 | M68: UAEBH | N68: ='Servicios EE 2024'!Q11 -> 0 | O68: Otro | P68: ='Servicios EE 2024'!R11 -> 0
A70: Numero de actividad | C70: 1.2.1
A71: Nivel de avance de la actividad | C71: Título de la actividad | G71: N/A | U71: Describa brevemente el impacto pedagógico que se obtuvo con esta acción
C72: USAER | F72: CAPEP | I72: CRIE | L72: UOP | O72: UAEBH | R72: Otro
C73: SEE: | D73: 0 | F73: SEE: | G73: 0 | I73: SEE: | J73: 0 | L73: SEE: | M73: 0 | O73: SEE: | P73: 0 | R73: SEE: | S73: 1 | U73: N/A
C74: M | D74: H | E74: T | F74: M | G74: H | H74: T | I74: M | J74: H | K74: T | L74: M | M74: H | N74: T | O74: M | P74: H | Q74: T | R74: M | S74: H | T74: T
A75: Familias | C75: 0 | D75: 0 | E75: =SUM(C75,D75) -> 0 | F75: 0 | G75: 0 | H75: =SUM(F75,G75) -> 0 | I75: 0 | J75: 0 | K75: =SUM(I75,J75) -> 0 | L75: 0 | M75: 0 | N75: =SUM(L75,M75) -> 0 | O75: 0 | P75: 0 | Q75: =SUM(O75,P75) -> 0 | R75: 0 | S75: 0 | T75: =SUM(R75,S75) -> 0
A77: En caso de requerir alguna precisión o aclaración, describa brevemente: | O77: En caso de modificación, indique número de oficio:
A78: N/A | O78: N/A

Sheet 2. Atención complementaria(DIS)
A1: Subsecretaría de Educación Básica Dirección General de Desarrollo Curricular Dirección de Fortalecimiento Curricular para la Formación Personal y Social en la Educación Básica Educación Especial
A6: Componente: 2. Acciones de atención complementaria para estudiantes con discapacidad
A7: 2.2 Acciones orientadas a que las y los estudiantes con discapacidad pongan en práctica las habilidades académicas, artísticas, deportivas, para la vida y/o laborales y que promuevan la sensibilización, promoción, difusión y desarrollo en la comunidad escolar una cultura inclusiva, a través de campañas, ferias y eventos
B8: SEE beneficiados en el trimestre. Componente 2: | E8: USAER | F8: ='Servicios EE 2024'!B$16 -> 0 | G8: CAM básico | H8: ='Servicios EE 2024'!C$16 -> 0 | I8: Básico FpT | J8: ='Servicios EE 2024'!C$18 -> 28 | K8: CAM laboral | L8: ='Servicios EE 2024'!D$16 -> 2 | M8: CAPEP | N8: ='Servicios EE 2024'!E$16 -> 0 | O8: CRIE | P8: ='Servicios EE 2024'!F$16 -> 0 | Q8: UOP | R8: ='Servicios EE 2024'!G$16 -> 0 | S8: UAEBH | T8: ='Servicios EE 2024'!H$16 -> 0 | U8: Otro | V8: ='Servicios EE 2024'!I$16 -> 0
A10: Numero de actividad | C10: 2.2.1
A11: Nivel de avance de la actividad | C11: Título de la actividad | I11: Encuentro deportivo | AD11: Describa brevemente el impacto pedagógico que se obtuvo con esta acción
C12: USAER | F12: CAM básico | I12: CAM básico con FpT | L12: CAM laboral | O12: CAPEP | R12: CRIE | U12: UOP | X12: UAEBH | AA12: Otro
A13: Realizada | C13: SEE: | D13: 0 | F13: SEE: | G13: 0 | I13: SEE: | J13: 28 | L13: SEE: | M13: 2 | O13: SEE: | P13: 0 | R13: SEE: | S13: 0 | U13: SEE: | V13: 0 | X13: SEE: | Y13: 0 | AA13: SEE: | AB13: 0 | AD13: Se favorecieron las habilidades psicomotrices y sociales de los alumnos con un encuentro entre pares con disciplinas de futbol, básquetbol, cachibol, atletismo y se incluyó natación.
C14: M | D14: H | E14: T | F14: M | G14: H | H14: T | I14: M | J14: H | K14: T | L14: M | M14: H | N14: T | O14: M | P14: H | Q14: T | R14: M | S14: H | T14: T | U14: M | V14: H | W14: T | X14: M | Y14: H | Z14: T | AA14: M | AB14: H | AC14: T
A15: Estudiantes | C15: 0 | D15: 0 | E15: =SUM(C15,D15) -> 0 | F15: 0 | G15: 0 | H15: =SUM(F15,G15) -> 0 | I15: 135 | J15: 134 | K15: =SUM(I15,J15) -> 269 | L15: 21 | M15: 20 | N15: =SUM(L15,M15) -> 41 | O15: 0 | P15: 0 | Q15: =SUM(O15,P15) -> 0 | R15: 0 | S15: 0 | T15: =SUM(R15,S15) -> 0 | U15: 0 | V15: 0 | W15: =SUM(U15,V15) -> 0 | X15: 0 | Y15: 0 | Z15: =SUM(X15,Y15) -> 0 | AA15: 0 | AB15: 0 | AC15: =SUM(AA15,AB15) -> 0
A17: En caso de requerir alguna precisión o aclaración, describa brevemente: | V17: En caso de modificación, indique número de oficio:
A18: REALIZADA 08 DE NOVIEMBRE DE 2024 | V18: N/A
A22: Numero de actividad | C22: 2.2.2
A23: Nivel de avance de la actividad | C23: Título de la actividad | I23: FERIA INCLUSIVA | AD23: Describa brevemente el impacto pedagógico que se obtuvo con esta acción
C24: USAER | F24: CAM básico | I24: CAM básico con FpT | L24: CAM laboral | O24: CAPEP | R24: CRIE | U24: UOP | X24: UAEBH | AA24: Otro
A25: Realizada | C25: SEE: | D25: 0 | F25: SEE: | G25: 0 | I25: SEE: | J25: 8 | L25: SEE: | M25: 2 | O25: SEE: | P25: 0 | R25: SEE: | S25: 0 | U25: SEE: | V25: 0 | X25: SEE: | Y25: 0 | AA25: SEE: | AB25: 0 | AD25: Se promovieron las habilidades artísticas y culturales de los alumnos de CAM, y se dio a conocer a la sociedad las elaboraciones en los distintos talleres, para favorecer la inclusión social y laboral de los alumnos.
C26: M | D26: H | E26: T | F26: M | G26: H | H26: T | I26: M | J26: H | K26: T | L26: M | M26: H | N26: T | O26: M | P26: H | Q26: T | R26: M | S26: H | T26: T | U26: M | V26: H | W26: T | X26: M | Y26: H | Z26: T | AA26: M | AB26: H | AC26: T
A27: Estudiantes | C27: 0 | D27: 0 | E27: =SUM(C27,D27) -> 0 | F27: 0 | G27: 0 | H27: =SUM(F27,G27) -> 0 | I27: 307 | J27: 513 | K27: 820 | L27: 54 | M27: 67 | N27: =SUM(L27,M27) -> 121 | O27: 0 | P27: 0 | Q27: =SUM(O27,P27) -> 0 | R27: 0 | S27: 0 | T27: =SUM(R27,S27) -> 0 | U27: 0 | V27: 0 | W27: =SUM(U27,V27) -> 0 | X27: 0 | Y27: 0 | Z27: =SUM(X27,Y27) -> 0 | AA27: 0 | AB27: 0 | AC27: =SUM(AA27,AB27) -> 0
A29: En caso de requerir alguna precisión o aclaración, describa brevemente: | V29: En caso de modificación, indique número de oficio:
A30: N/A | V30: N/A

Sheet 2. Atención complementaria (AS)
A1: Subsecretaría de Educación Básica Dirección General de Desarrollo Curricular Dirección de Fortalecimiento Curricular para la Formación Personal y Social en la Educación Básica Educación Especial
A6: Componente: 2. Acciones de atención complementaria para estudiantes con aptitudes sobresalientes
A7: 2.1 Acciones orientadas a la intervención directa y la atención complementaria: académica, artística, deportiva, rehabilitadora, desarrollo de habilidades socioafectivas y/o que contribuyan en el diagnóstico de las y los estudiantes con aptitudes sobresalientes
B8: SEE beneficiados en el trimestre. Componente 2: | E8: USAER | F8: ='Servicios EE 2024'!M$16 -> 65 | G8: CAPEP | H8: ='Servicios EE 2024'!N$16 -> 0 | I8: CRIE | J8: ='Servicios EE 2024'!O$16 -> 0 | K8: UOP | L8: ='Servicios EE 2024'!P$16 -> 0 | M8: UAEBH | N8: ='Servicios EE 2024'!Q$16 -> 0 | O8: Otro | P8: ='Servicios EE 2024'!R$16 -> 0
A10: Numero de actividad | C10: 2.1.1
A11: Nivel de avance de la actividad | C11: Título de la actividad | G11: N/A | U11: Describa brevemente el impacto pedagógico que se obtuvo con esta acción
C12: USAER | F12: CAPEP | I12: CRIE | L12: UOP | O12: UAEBH | R12: Otro | U12: N/A
C13: SEE: | D13: 0 | F13: SEE: | G13: 0 | I13: SEE: | J13: 0 | L13: SEE: | M13: 0 | O13: SEE: | P13: 0 | R13: SEE: | S13: 0
C14: M | D14: H | E14: T | F14: M | G14: H | H14: T | I14: M | J14: H | K14: T | L14: M | M14: H | N14: T | O14: M | P14: H | Q14: T | R14: M | S14: H | T14: T
A15: Estudiantes | C15: 0 | D15: 0 | E15: 0 | F15: 0 | G15: 0 | H15: =SUM(F15,G15) -> 0 | I15: 0 | J15: 0 | K15: =SUM(I15,J15) -> 0 | L15: 0 | M15: 0 | N15: =SUM(L15,M15) -> 0 | O15: 0 | P15: 0 | Q15: =SUM(O15,P15) -> 0 | R15: 0 | S15: 0 | T15: =SUM(R15,S15) -> 0
A17: En caso de requerir alguna precisión o aclaración, describa brevemente: | P17: En caso de modificación, indique número de oficio:
A18: N/A | P18: N/A
A22: Numero de actividad | C22: 2.1.2
A23: Nivel de avance de la actividad | C23: Título de la actividad | G23: TALLERES DE ENRIQUECIMIENTO EXTRACURRICULAR DE CIENCIAS | U23: Describa brevemente el impacto pedagógico que se obtuvo con esta acción
C24: USAER | F24: CAPEP | I24: CRIE | L24: UOP | O24: UAEBH | R24: Otro | U24: Esta actividad despertó el interés y curiosidad de los alumnos por el pensamiento científico, con actividades lúdicas y creativas que se implementaron en los entornos escolares de los alumnos.
A25: En desarrollo | C25: SEE: | D25: 65 | F25: SEE: | G25: 0 | I25: SEE: | J25: 0 | L25: SEE: | M25: 0 | O25: SEE: | P25: 0 | R25: SEE: | S25: 0
C26: M | D26: H | E26: T | F26: M | G26: H | H26: T | I26: M | J26: H | K26: T | L26: M | M26: H | N26: T | O26: M | P26: H | Q26: T | R26: M | S26: H | T26: T
A27: Estudiantes | C27: 200 | D27: 200 | E27: =SUM(C27,D27) -> 400 | F27: 0 | G27: 0 | H27: =SUM(F27,G27) -> 0 | I27: 0 | J27: 0 | K27: =SUM(I27,J27) -> 0 | L27: 0 | M27: 0 | N27: =SUM(L27,M27) -> 0 | O27: 0 | P27: 0 | Q27: =SUM(O27,P27) -> 0 | R27: 0 | S27: 0 | T27: =SUM(R27,S27) -> 0
A29: En caso de requerir alguna precisión o aclaración, describa brevemente: | P29: En caso de modificación, indique número de oficio:
A30: CUATRO SESIONES EFECTUADAS, CON TÉRMINO 14 MARZO DE 2025 | P30: N/A
A34: Numero de actividad | C34: 2.1.3
A35: Nivel de avance de la actividad | C35: Título de la actividad | G35: TALLERES DE ENRIQUECIMIENTO EXTRACURRICULAR DE DANZA | U35: Describa brevemente el impacto pedagógico que se obtuvo con esta acción
C36: USAER | F36: CAPEP | I36: CRIE | L36: UOP | O36: UAEBH | R36: Otro | U36: Se perfeccionaron las habilidades psicomotrices y técnicas de los alumnos participantes, enriqueciendo el ámbito físico y cultural de los mismos.
A37: En desarrollo | C37: SEE: | D37: 46 | F37: SEE: | G37: 0 | I37: SEE: | J37: 0 | L37: SEE: | M37: 0 | O37: SEE: | P37: 0 | R37: SEE: | S37: 0
C38: M | D38: H | E38: T | F38: M | G38: H | H38: T | I38: M | J38: H | K38: T | L38: M | M38: H | N38: T | O38: M | P38: H | Q38: T | R38: M | S38: H | T38: T
A39: Estudiantes | C39: 100 | D39: 50 | E39: =SUM(C39,D39) -> 150 | F39: 0 | G39: 0 | H39: =SUM(F39,G39) -> 0 | I39: 0 | J39: 0 | K39: =SUM(I39,J39) -> 0 | L39: 0 | M39: 0 | N39: =SUM(L39,M39) -> 0 | O39: 0 | P39: 0 | Q39: =SUM(O39,P39) -> 0 | R39: 0 | S39: 0 | T39: =SUM(R39,S39) -> 0
A41: En caso de requerir alguna precisión o aclaración, describa brevemente: | P41: En caso de modificación, indique número de oficio:
A42: CONVENIO FIRMADO, TOMA DE ACUERDOS Y ENCUADRE, CONFORMACIÓN DE GRUPOS, CON TÉRMINO MARZO DE 2025 | P42: OFICIO ARTÍCULO 17: 0187 ANEXO 8

Sheet 3. Equipamiento específico(DIS)
AW1: Subsecretaría de Educación Básica Dirección General de Desarrollo Curricular Dirección de Fortalecimiento Curricular para la Formación Personal y Social en la Educación Básica Educación Especial
A6: Componente: 3. Equipamiento específico en beneficio de estudiantes con discapacidad
A8: 3.1 Dotar de material didáctico especializado para estudiantes con discapacidad
C10: Beneficiados USAER | F10: ='Servicios EE 2024'!B21 -> 81 | H10: Beneficiados CAM básico | K10: ='Servicios EE 2024'!C21 -> 0 | M10: Beneficiados CAM b con FpT | P10: ='Servicios EE 2024'!C23 -> 28 | R10: Beneficiados CAM laboral | U10: ='Servicios EE 2024'!D21 -> 2 | W10: Beneficiados CAPEP | Z10: ='Servicios EE 2024'!E21 -> 0 | AB10: Beneficiados CRIE | AE10: ='Servicios EE 2024'!F21 -> 0 | AG10: Beneficiados UOP | AJ10: ='Servicios EE 2024'!G21 -> 0 | AL10: Beneficiados UAEBH | AO10: ='Servicios EE 2024'!H21 -> 0 | AQ10: Beneficiados Otro | AT10: ='Servicios EE 2024'!I21 -> 0
A11: Tipo de materiales (seleccione) | B11: Material adquirido | C11: Cantidad a distribuir | D11: USAER | H11: Cantidad a distribuir | I11: CAM básico | M11: Cantidad a distribuir | N11: CAM básico con FpT | R11: Cantidad a distribuir | S11: CAM laboral | W11: Cantidad a distribuir | X11: CAPEP | AB11: Cantidad a distribuir | AC11: CRIE | AG11: Cantidad a distribuir | AH11: UOP | AL11: Cantidad a distribuir | AM11: UAEBH | AQ11: Cantidad a distribuir | AR11: Otro | AV11: Nivel de avance de la acción | AW11: En caso de modificación, indique número de oficio | BA11: Describa brevemente el impacto pedagógico que se obtuvo con esta acción
D12: SEE | E12: Estudiantes | I12: SEE | J12: Estudiantes | N12: SEE | O12: Estudiantes | S12: SEE | T12: Estudiantes | X12: SEE | Y12: Estudiantes | AC12: SEE | AD12: Estudiantes | AH12: SEE | AI12: Estudiantes | AM12: SEE | AN12: Estudiantes | AR12: SEE | AS12: Estudiantes
E13: M | F13: H | G13: T | J13: M | K13: H | L13: T | O13: M | P13: H | Q13: T | T13: M | U13: H | V13: T | Y13: M | Z13: H | AA13: T | AD13: M | AE13: H | AF13: T | AI13: M | AJ13: H | AK13: T | AN13: M | AO13: H | AP13: T | AS13: M | AT13: H | AU13: T
A14: Paquetes con diversos materiales | B14: Paquete para DV: 2 alfabeto braille, 2 paquete de fracciones en braille, 3 memorama en braille, 3 lotería braille, 3 mapa en relieve de México, 3 mapa en relieve de Durango, 3 mapamundis en relieve, juegos de mesa: 1 juego gato adaptado y un juego parchis adaptado para discapacidad visual. | C14: 2 | D14: 2 | E14: 1 | F14: 5 | G14: =SUM(E14,F14) -> 6 | H14: 0 | I14: 0 | J14: 0 | K14: 0 | L14: =SUM(J14,K14) -> 0 | M14: 3 | N14: 3 | O14: 3 | P14: 2 | Q14: =SUM(O14,P14) -> 5 | R14: 0 | S14: 0 | T14: 0 | U14: 0 | V14: =SUM(T14,U14) -> 0 | W14: 0 | X14: 0 | Y14: 0 | Z14: 0 | AA14: =SUM(Y14,Z14) -> 0 | AB14: 0 | AC14: 0 | AD14: 0 | AE14: 0 | AF14: =SUM(AD14,AE14) -> 0 | AG14: 0 | AH14: 0 | AI14: 0 | AJ14: 0 | AK14: =SUM(AI14,AJ14) -> 0 | AL14: 0 | AM14: 0 | AN14: 0 | AO14: 0 | AP14: =SUM(AN14,AO14) -> 0 | AQ14: 0 | AR14: 0 | AS14: 0 | AT14: 0 | AU14: =SUM(AS14,AT14) -> 0 | AV14: Materiales adquiridos, falta entrega | AW14: N/A | BA14: N/A
A15: Paquetes con diversos materiales | B15: Paquete de Juguetes Montessori: 3 Cajas de clasificación cognitiva, 5 juegos de ensamble de madera de diversos campos semánticos: animales, figuras geométricas, verduras, transportes, profesiones. | C15: 0 | D15: 0 | E15: 0 | F15: 0 | G15: =SUM(E15,F15) -> 0 | H15: 0 | I15: 0 | J15: 0 | K15: 0 | L15: =SUM(J15,K15) -> 0 | M15: 5 | N15: 5 | O15: 104 | P15: 159 | Q15: =SUM(O15,P15) -> 263 | R15: 0 | S15: 0 | T15: 0 | U15: 0 | V15: =SUM(T15,U15) -> 0 | W15: 0 | X15: 0 | Y15: 0 | Z15: 0 | AA15: =SUM(Y15,Z15) -> 0 | AB15: 0 | AC15: 0 | AD15: 0 | AE15: 0 | AF15: =SUM(AD15,AE15) -> 0 | AG15: 0 | AH15: 0 | AI15: 0 | AJ15: 0 | AK15: =SUM(AI15,AJ15) -> 0 | AL15: 0 | AM15: 0 | AN15: 0 | AO15: 0 | AP15: =SUM(AN15,AO15) -> 0 | AQ15: 0 | AR15: 0 | AS15: 0 | AT15: 0 | AU15: =SUM(AS15,AT15) -> 0 | AV15: Materiales adquiridos, falta entrega | AW15: N/A | BA15: N/A
A16: Paquetes con diversos materiales | B16: Material para TEA: 3 tarjetas de horario visual, 3 calendario de anticipación, 3 temporalizadores | C16: 0 | D16: 0 | E16: 0 | F16: 0 | G16: 0 | H16: 0 | I16: 0 | J16: 0 | K16: 0 | L16: 0 | M16: 3 | N16: 3 | O16: 6 | P16: 30 | Q16: 36 | R16: 0 | S16: 0 | T16: 0 | U16: 0 | V16: 0 | W16: 0 | X16: 0 | Y16: 0 | Z16: 0 | AA16: 0 | AB16: 0 | AC16: 0 | AD16: 0 | AE16: 0 | AF16: 0 | AG16: 0 | AH16: 0 | AI16: 0 | AJ16: 0 | AK16: 0 | AL16: 0 | AM16: 0 | AN16: 0 | AO16: 0 | AP16: 0 | AQ16: 0 | AR16: 0 | AS16: 0 | AT16: 0 | AU16: 0 | AV16: Materiales adquiridos, falta entrega | AW16: N/A | BA16: N/A
A17: Paquetes con diversos materiales | B17: Paquete deportivo: 1 twister, 2 set de 3 postes de agilidad y entrenamiento deportivo 1.20m, 3 balones sonoros: 1 de futbol, 1 basquetbol, 1 voleibol, 1 kit de pelotas sensoriales: pelota de yoga de 75 cm con 2 mm de espesor, 1 paracaídas. | C17: 0 | D17: 0 | E17: 0 | F17: 0 | G17: 0 | H17: 0 | I17: 0 | J17: 0 | K17: 0 | L17: 0 | M17: 2 | N17: 2 | O17: 22 | P17: 33 | Q17: 55 | R17: 0 | S17: 0 | T17: 0 | U17: 0 | V17: 0 | W17: 0 | X17: 0 | Y17: 0 | Z17: 0 | AA17: 0 | AB17: 0 | AC17: 0 | AD17: 0 | AE17: 0 | AF17: 0 | AG17: 0 | AH17: 0 | AI17: 0 | AJ17: 0 | AK17: 0 | AL17: 0 | AM17: 0 | AN17: 0 | AO17: 0 | AP17: 0 | AQ17: 0 | AR17: 0 | AS17: 0 | AT17: 0 | AU17: 0 | AV17: Materiales adquiridos, falta entrega | AW17: N/A | BA17: N/A
A18: Paquetes con diversos materiales | B18: Paquete construcción: 3 Juegos de construcción con bolas y varillas magnéticas de 50 piezas, 3 kit de bloques de construcción LEGO primaria, 3 kit de bloques de construcción LEGO preescolar, 3 kits de bloques magnéticos de construcción en 3D, 1 arenal sensorial. | C18: 0 | D18: 0 | E18: 0 | F18: 0 | G18: 0 | H18: 0 | I18: 0 | J18: 0 | K18: 0 | L18: 0 | M18: 6 | N18: 6 | O18: 224 | P18: 374 | Q18: 598 | R18: 0 | S18: 0 | T18: 0 | U18: 0 | V18: 0 | W18: 0 | X18: 0 | Y18: 0 | Z18: 0 | AA18: 0 | AB18: 0 | AC18: 0 | AD18: 0 | AE18: 0 | AF18: 0 | AG18: 0 | AH18: 0 | AI18: 0 | AJ18: 0 | AK18: 0 | AL18: 0 | AM18: 0 | AN18: 0 | AO18: 0 | AP18: 0 | AQ18: 0 | AR18: 0 | AS18: 0 | AT18: 0 | AU18: 0 | AV18: Materiales adquiridos, falta entrega | AW18: N/A | BA18: N/A
A19: Paquetes con diversos materiales | B19: Paquete Juegos de estrategia: 1 Jenga gigante, 2 dados de foamy de 50 cm, 1 Adigma, 1 desafío pin-pong, 1 apilamiento de tazas, 1 adivina quién, 1 gato, 1 parchis, 1 acrobat, 2 reloj de arena, 2 temporalizador de 60 min. | C19: 0 | D19: 0 | E19: 0 | F19: 0 | G19: 0 | H19: 0 | I19: 0 | J19: 0 | K19: 0 | L19: 0 | M19: 5 | N19: 5 | O19: 178 | P19: 297 | Q19: 475 | R19: 0 | S19: 0 | T19: 0 | U19: 0 | V19: 0 | W19: 0 | X19: 0 | Y19: 0 | Z19: 0 | AA19: 0 | AB19: 0 | AC19: 0 | AD19: 0 | AE19: 0 | AF19: 0 | AG19: 0 | AH19: 0 | AI19: 0 | AJ19: 0 | AK19: 0 | AL19: 0 | AM19: 0 | AN19: 0 | AO19: 0 | AP19: 0 | AQ19: 0 | AR19: 0 | AS19: 0 | AT19: 0 | AU19: 0 | AV19: Materiales adquiridos, falta entrega | AW19: N/A | BA19: N/A
A20: Paquetes con diversos materiales | B20: Paquete sensorial: 1 Geoplano, 1 pizarrón magnético, 1 alfabeto de imán, 1 números de imán, 1 máquina de burbujas, 1 lotería de sonidos, 1 memoria electrónica de mano con luces y sonido. | C20: 0 | D20: 0 | E20: 0 | F20: 0 | G20: =SUM(E20,F20) -> 0 | H20: 0 | I20: 0 | J20: 0 | K20: 0 | L20: =SUM(J20,K20) -> 0 | M20: 3 | N20: 3 | O20: 66 | P20: 104 | Q20: =SUM(O20,P20) -> 170 | R20: 0 | S20: 0 | T20: 0 | U20: 0 | V20: =SUM(T20,U20) -> 0 | W20: 0 | X20: 0 | Y20: 0 | Z20: 0 | AA20: =SUM(Y20,Z20) -> 0 | AB20: 0 | AC20: 0 | AD20: 0 | AE20: 0 | AF20: =SUM(AD20,AE20) -> 0 | AG20: 0 | AH20: 0 | AI20: 0 | AJ20: 0 | AK20: =SUM(AI20,AJ20) -> 0 | AL20: 0 | AM20: 0 | AN20: 0 | AO20: 0 | AP20: =SUM(AN20,AO20) -> 0 | AQ20: 0 | AR20: 0 | AS20: 0 | AT20: 0 | AU20: =SUM(AS20,AT20) -> 0 | AV20: Materiales adquiridos, falta entrega | AW20: N/A | BA20: N/A
A21: Tableros de comunicación | B21: Tableros de madera o plástico grueso con estuche para diferentes campos y contextos | C21: 50 | D21: 5 | E21: 2 | F21: 28 | G21: 30 | H21: 0 | I21: 0 | J21: 0 | K21: 0 | L21: 0 | M21: 21 | N21: 4 | O21: 85 | P21: 142 | Q21: 227 | R21: 0 | S21: 0 | T21: 0 | U21: 0 | V21: 0 | W21: 0 | X21: 0 | Y21: 0 | Z21: 0 | AA21: 0 | AB21: 0 | AC21: 0 | AD21: 0 | AE21: 0 | AF21: 0 | AG21: 0 | AH21: 0 | AI21: 0 | AJ21: 0 | AK21: 0 | AL21: 0 | AM21: 0 | AN21: 0 | AO21: 0 | AP21: 0 | AQ21: 0 | AR21: 0 | AS21: 0 | AT21: 0 | AU21: 0 | AV21: Materiales adquiridos, falta entrega | AW21: N/A | BA21: N/A
A22: Regletas y punzón | B22: Regleta y punzón metálicos tamaño carta resistentes | C22: 8 | D22: 2 | E22: 0 | F22: 3 | G22: 3 | H22: 0 | I22: 0 | J22: 0 | K22: 0 | L22: 0 | M22: 1 | N22: 1 | O22: 1 | P22: 0 | Q22: 1 | R22: 0 | S22: 0 | T22: 0 | U22: 0 | V22: 0 | W22: 0 | X22: 0 | Y22: 0 | Z22: 0 | AA22: 0 | AB22: 0 | AC22: 0 | AD22: 0 | AE22: 0 | AF22: 0 | AG22: 0 | AH22: 0 | AI22: 0 | AJ22: 0 | AK22: 0 | AL22: 0 | AM22: 0 | AN22: 0 | AO22: 0 | AP22: 0 | AQ22: 0 | AR22: 0 | AS22: 0 | AT22: 0 | AU22: 0 | AV22: Materiales adquiridos, falta entrega | AW22: N/A | BA22: N/A
A23: Ábaco Cramer | B23: Ábaco de material resistente con estuche | C23: 6 | D23: 2 | E23: 0 | F23: 3 | G23: 3 | H23: 0 | I23: 0 | J23: 0 | K23: 0 | L23: 0 | M23: 4 | N23: 2 | O23: 1 | P23: 1 | Q23: 2 | R23: 0 | S23: 0 | T23: 0 | U23: 0 | V23: 0 | W23: 0 | X23: 0 | Y23: 0 | Z23: 0 | AA23: 0 | AB23: 0 | AC23: 0 | AD23: 0 | AE23: 0 | AF23: 0 | AG23: 0 | AH23: 0 | AI23: 0 | AJ23: 0 | AK23: 0 | AL23: 0 | AM23: 0 | AN23: 0 | AO23: 0 | AP23: 0 | AQ23: 0 | AR23: 0 | AS23: 0 | AT23: 0 | AU23: 0 | AV23: Materiales adquiridos, falta entrega | AW23: N/A | BA23: N/A
A24: Regletas cuisenaire | B24: Regletas de material resistente | C24: 18 | D24: 18 | E24: 176 | F24: 458 | G24: 634 | H24: 0 | I24: 0 | J24: 0 | K24: 0 | L24: 0 | M24: 5 | N24: 1 | O24: 28 | P24: 43 | Q24: 71 | R24: 0 | S24: 0 | T24: 0 | U24: 0 | V24: 0 | W24: 0 | X24: 0 | Y24: 0 | Z24: 0 | AA24: 0 | AB24: 0 | AC24: 0 | AD24: 0 | AE24: 0 | AF24: 0 | AG24: 0 | AH24: 0 | AI24: 0 | AJ24: 0 | AK24: 0 | AL24: 0 | AM24: 0 | AN24: 0 | AO24: 0 | AP24: 0 | AQ24: 0 | AR24: 0 | AS24: 0 | AT24: 0 | AU24: 0 | AV24: Materiales adquiridos, falta entrega | AW24: N/A | BA24: N/A
A25: Caja aritmética | B25: Caja de madera resistente | C25: 9 | D25: 6 | E25: 2 | F25: 7 | G25: 9 | H25: 0 | I25: 0 | J25: 0 | K25: 0 | L25: 0 | M25: 5 | N25: 3 | O25: 3 | P25: 2 | Q25: 5 | R25: 0 | S25: 0 | T25: 0 | U25: 0 | V25: 0 | W25: 0 | X25: 0 | Y25: 0 | Z25: 0 | AA25: 0 | AB25: 0 | AC25: 0 | AD25: 0 | AE25: 0 | AF25: 0 | AG25: 0 | AH25: 0 | AI25: 0 | AJ25: 0 | AK25: 0 | AL25: 0 | AM25: 0 | AN25: 0 | AO25: 0 | AP25: 0 | AQ25: 0 | AR25: 0 | AS25: 0 | AT25: 0 | AU25: 0 | AV25: Materiales adquiridos, falta entrega | AW25: N/A | BA25: N/A
A26: Material didáctico concreto | B26: Lámpara de lava | C26: 0 | D26: 0 | E26: 0 | F26: 0 | G26: 0 | H26: 0 | I26: 0 | J26: 0 | K26: 0 | L26: 0 | M26: 15 | N26: 3 | O26: 142 | P26: 242 | Q26: 384 | R26: 0 | S26: 0 | T26: 0 | U26: 0 | V26: 0 | W26: 0 | X26: 0 | Y26: 0 | Z26: 0 | AA26: 0 | AB26: 0 | AC26: 0 | AD26: 0 | AE26: 0 | AF26: 0 | AG26: 0 | AH26: 0 | AI26: 0 | AJ26: 0 | AK26: 0 | AL26: 0 | AM26: 0 | AN26: 0 | AO26: 0 | AP26: 0 | AQ26: 0 | AR26: 0 | AS26: 0 | AT26: 0 | AU26: 0 | AV26: Materiales adquiridos, falta entrega | AW26: N/A | BA26: N/A
A27: Paquetes con diversos materiales | B27: Paquete lectoescritura de 5 silabarios, 5 alfabeto móvil, 5 juegos de números móviles de plástico, 5 tarjetas de abecedario por asociación. | C27: 16 | D27: 16 | E27: 176 | F27: 427 | G27: 603 | H27: 0 | I27: 0 | J27: 0 | K27: 0 | L27: 0 | M27: 0 | N27: 0 | O27: 0 | P27: 0 | Q27: 0 | R27: 0 | S27: 0 | T27: 0 | U27: 0 | V27: 0 | W27: 0 | X27: 0 | Y27: 0 | Z27: 0 | AA27: 0 | AB27: 0 | AC27: 0 | AD27: 0 | AE27: 0 | AF27: 0 | AG27: 0 | AH27: 0 | AI27: 0 | AJ27: 0 | AK27: 0 | AL27: 0 | AM27: 0 | AN27: 0 | AO27: 0 | AP27: 0 | AQ27: 0 | AR27: 0 | AS27: 0 | AT27: 0 | AU27: 0 | AV27: Materiales adquiridos, falta entrega | AW27: N/A | BA27: N/A
B28: Lupa | C28: 0 | D28: 0 | E28: 0 | F28: 0 | G28: 0 | H28: 0 | I28: 0 | J28: 0 | K28: 0 | L28: 0 | M28: 5 | N28: 4 | O28: 3 | P28: 2 | Q28: 5 | R28: 0 | S28: 0 | T28: 0 | U28: 0 | V28: 0 | W28: 0 | X28: 0 | Y28: 0 | Z28: 0 | AA28: 0 | AB28: 0 | AC28: 0 | AD28: 0 | AE28: 0 | AF28: 0 | AG28: 0 | AH28: 0 | AI28: 0 | AJ28: 0 | AK28: 0 | AL28: 0 | AM28: 0 | AN28: 0 | AO28: 0 | AP28: 0 | AQ28: 0 | AR28: 0 | AS28: 0 | AT28: 0 | AU28: 0 | AV28: Materiales adquiridos, falta entrega | AW28: N/A | BA28: N/A
A29: Total | C29: 0 | D29: =SUM(D14:D28) -> 51 | E29: 357 | F29: 931 | G29: 1288 | H29: 0 | I29: 0 | J29: 0 | K29: 0 | L29: 0 | M29: 83 | N29: 45 | O29: 866 | P29: 1431 | Q29: 2297 | R29: 0 | S29: 0 | T29: 0 | U29: 0 | V29: 0 | W29: 0 | X29: 0 | Y29: 0 | Z29: 0 | AA29: 0 | AB29: 0 | AC29: 0 | AD29: 0 | AE29: 0 | AF29: 0 | AG29: 0 | AH29: 0 | AI29: 0 | AJ29: 0 | AK29: 0 | AL29: 0 | AM29: 0 | AN29: 0 | AO29: 0 | AP29: 0 | AQ29: 0 | AR29: 0 | AS29: 0 | AT29: 0 | AU29: 0
A30: En caso de requerir alguna precisión o aclaración, describa brevemente:
A31: MATERIALES EN ALMACEN, FALTA ENTREGA A LOS SERVICIOS BENEFICIARIOS
A34: 3.2 Dotar de material bibliográfico para estudiantes con discapacidad
C36: Beneficiados USAER | F36: ='Servicios EE 2024'!B21 -> 81 | H36: Beneficiados CAM básico | K36: ='Servicios EE 2024'!C21 -> 0 | M36: Beneficiados CAM b con FpT | P36: ='Servicios EE 2024'!C23 -> 28 | R36: Beneficiados CAM laboral | U36: ='Servicios EE 2024'!D21 -> 2 | W36: Beneficiados CAPEP | Z36: ='Servicios EE 2024'!E21 -> 0 | AB36: Beneficiados CRIE | AE36: ='Servicios EE 2024'!F21 -> 0 | AG36: Beneficiados UOP | AJ36: ='Servicios EE 2024'!G21 -> 0 | AL36: Beneficiados UAEBH | AO36: ='Servicios EE 2024'!H21 -> 0 | AQ36: Beneficiados Otro | AT36: ='Servicios EE 2024'!I21 -> 0
A37: Tipo de libros (seleccione) | C37: Cantidad a distribuir | D37: USAER | H37: Cantidad a distribuir | I37: CAM básico | M37: Cantidad a distribuir | N37: CAM básico con FpT | R37: Cantidad a distribuir | S37: CAM laboral | W37: Cantidad a distribuir | X37: CAPEP | AB37: Cantidad a distribuir | AC37: CRIE | AG37: Cantidad a distribuir | AH37: UOP | AL37: Cantidad a distribuir | AM37: UAEBH | AQ37: Cantidad a distribuir | AR37: Otro | AV37: Nivel de avance de la acción | AW37: En caso de modificación, indique número de oficio | BA37: Describa brevemente el impacto pedagógico que se obtuvo con esta acción
D38: SEE | E38: Estudiantes | I38: SEE | J38: Estudiantes | N38: SEE | O38: Estudiantes | S38: SEE | T38: Estudiantes | X38: SEE | Y38: Estudiantes | AC38: SEE | AD38: Estudiantes | AH38: SEE | AI38: Estudiantes | AM38: SEE | AN38: Estudiantes | AR38: SEE | AS38: Estudiantes
E39: M | F39: H | G39: T | J39: M | K39: H | L39: T | O39: M | P39: H | Q39: T | T39: M | U39: H | V39: T | Y39: M | Z39: H | AA39: T | AD39: M | AE39: H | AF39: T | AI39: M | AJ39: H | AK39: T | AN39: M | AO39: H | AP39: T | AS39: M | AT39: H | AU39: T
A40: Especializados en atención educativa | C40: 2 | D40: 1 | E40: 1 | F40: 21 | G40: =SUM(E40,F40) -> 22 | H40: 0 | I40: 0 | J40: 0 | K40: 0 | L40: =SUM(J40,K40) -> 0 | M40: 0 | N40: 0 | O40: 0 | P40: 0 | Q40: =SUM(O40,P40) -> 0 | R40: 0 | S40: 0 | T40: 0 | U40: 0 | V40: =SUM(T40,U40) -> 0 | W40: 0 | X40: 0 | Y40: 0 | Z40: 0 | AA40: =SUM(Y40,Z40) -> 0 | AB40: 0 | AC40: 0 | AD40: 0 | AE40: 0 | AF40: =SUM(AD40,AE40) -> 0 | AG40: 0 | AH40: 0 | AI40: 0 | AJ40: 0 | AK40: =SUM(AI40,AJ40) -> 0 | AL40: 0 | AM40: 0 | AN40: 0 | AO40: 0 | AP40: =SUM(AN40,AO40) -> 0 | AQ40: 0 | AR40: 0 | AS40: 0 | AT40: 0 | AU40: =SUM(AS40,AT40) -> 0 | AV40: Materiales adquiridos, falta entrega | AW40: N/A | BA40: N/A
A41: Especializados en discapacidad | C41: 2 | D41: 1 | E41: 4 | F41: 14 | G41: =SUM(E41,F41) -> 18 | H41: 0 | I41: 0 | J41: 0 | K41: 0 | L41: =SUM(J41,K41) -> 0 | M41: 0 | N41: 0 | O41: 0 | P41: 0 | Q41: =SUM(O41,P41) -> 0 | R41: 0 | S41: 0 | T41: 0 | U41: 0 | V41: =SUM(T41,U41) -> 0 | W41: 0 | X41: 0 | Y41: 0 | Z41: 0 | AA41: =SUM(Y41,Z41) -> 0 | AB41: 0 | AC41: 0 | AD41: 0 | AE41: 0 | AF41: =SUM(AD41,AE41) -> 0 | AG41: 0 | AH41: 0 | AI41: 0 | AJ41: 0 | AK41: =SUM(AI41,AJ41) -> 0 | AL41: 0 | AM41: 0 | AN41: 0 | AO41: 0 | AP41: =SUM(AN41,AO41) -> 0 | AQ41: 0 | AR41: 0 | AS41: 0 | AT41: 0 | AU41: =SUM(AS41,AT41) -> 0 | AV41: Materiales adquiridos, falta entrega | AW41: N/A | BA41: N/A
A42: Especializados en atención educativa | C42: 2 | D42: 1 | E42: 4 | F42: 11 | G42: 15 | H42: 0 | I42: 0 | J42: 0 | K42: 0 | L42: 0 | M42: 0 | N42: 0 | O42: 0 | P42: 0 | Q42: 0 | R42: 0 | S42: 0 | T42: 0 | U42: 0 | V42: 0 | W42: 0 | X42: 0 | Y42: 0 | Z42: 0 | AA42: 0 | AB42: 0 | AC42: 0 | AD42: 0 | AE42: 0 | AF42: 0 | AG42: 0 | AH42: 0 | AI42: 0 | AJ42: 0 | AK42: 0 | AL42: 0 | AM42: 0 | AN42: 0 | AO42: 0 | AP42: 0 | AQ42: 0 | AR42: 0 | AS42: 0 | AT42: 0 | AU42: 0 | AV42: Materiales adquiridos, falta entrega | AW42: N/A | BA42: N/A
A43: Especializados en atención educativa | C43: 2 | D43: 1 | E43: 11 | F43: 20 | G43: 31 | H43: 0 | I43: 0 | J43: 0 | K43: 0 | L43: 0 | M43: 0 | N43: 0 | O43: 0 | P43: 0 | Q43: 0 | R43: 0 | S43: 0 | T43: 0 | U43: 0 | V43: 0 | W43: 0 | X43: 0 | Y43: 0 | Z43: 0 | AA43: 0 | AB43: 0 | AC43: 0 | AD43: 0 | AE43: 0 | AF43: 0 | AG43: 0 | AH43: 0 | AI43: 0 | AJ43: 0 | AK43: 0 | AL43: 0 | AM43: 0 | AN43: 0 | AO43: 0 | AP43: 0 | AQ43: 0 | AR43: 0 | AS43: 0 | AT43: 0 | AU43: 0 | AV43: Materiales adquiridos, falta entrega | AW43: N/A | BA43: N/A
A44: En formatos accesibles | C44: 2 | D44: 2 | E44: 2 | F44: 5 | G44: 7 | H44: 0 | I44: 0 | J44: 0 | K44: 0 | L44: 0 | M44: 0 | N44: 0 | O44: 0 | P44: 0 | Q44: 0 | R44: 0 | S44: 0 | T44: 0 | U44: 0 | V44: 0 | W44: 0 | X44: 0 | Y44: 0 | Z44: 0 | AA44: 0 | AB44: 0 | AC44: 0 | AD44: 0 | AE44: 0 | AF44: 0 | AG44: 0 | AH44: 0 | AI44: 0 | AJ44: 0 | AK44: 0 | AL44: 0 | AM44: 0 | AN44: 0 | AO44: 0 | AP44: 0 | AQ44: 0 | AR44: 0 | AS44: 0 | AT44: 0 | AU44: 0 | AV44: Materiales adquiridos, falta entrega | AW44: N/A | BA44: N/A
A45: Total | C45: =SUM(C40:C44) -> 10 | D45: 6 | E45: 22 | F45: 71 | G45: 93 | H45: 0 | I45: 0 | J45: 0 | K45: 0 | L45: 0 | M45: 0 | N45: 0 | O45: 0 | P45: 0 | Q45: 0 | R45: 0 | S45: 0 | T45: 0 | U45: 0 | V45: 0 | W45: 0 | X45: 0 | Y45: 0 | Z45: 0 | AA45: 0 | AB45: 0 | AC45: 0 | AD45: 0 | AE45: 0 | AF45: 0 | AG45: 0 | AH45: 0 | AI45: 0 | AJ45: 0 | AK45: 0 | AL45: 0 | AM45: 0 | AN45: 0 | AO45: 0 | AP45: 0 | AQ45: 0 | AR45: 0 | AS45: 0 | AT45: 0 | AU45: 0
A46: En caso de requerir alguna precisión o aclaración, describa brevemente:
A47: MATERIALES EN ALMACEN, FALTA PROGRAMACIÓN ENTREGA A LOS SERVICIOS BENEFICIARIOS
A49: 3.5 Dotar de equipo adaptado, tecnológico y/o multimedia para estudiantes con discapacidad
C51: Beneficiados USAER | F51: ='Servicios EE 2024'!B21 -> 81 | H51: Beneficiados CAM básico | K51: ='Servicios EE 2024'!C21 -> 0 | M51: Beneficiados CAM b con FpT | P51: ='Servicios EE 2024'!C23 -> 28 | R51: Beneficiados CAM laboral | U51: ='Servicios EE 2024'!D21 -> 2 | W51: Beneficiados CAPEP | Z51: ='Servicios EE 2024'!E21 -> 0 | AB51: Beneficiados CRIE | AE51: ='Servicios EE 2024'!F21 -> 0 | AG51: Beneficiados UOP | AJ51: ='Servicios EE 2024'!G21 -> 0 | AL51: Beneficiados UAEBH | AO51: ='Servicios EE 2024'!H21 -> 0 | AQ51: Beneficiados Otro | AT51: ='Servicios EE 2024'!I21 -> 0
A52: Tipo de equipo (seleccione) | B52: Características generales de los equipos | C52: Cantidad a distribuir | D52: USAER | H52: Cantidad a distribuir | I52: CAM básico | M52: Cantidad a distribuir | N52: CAM básico con FpT | R52: Cantidad a distribuir | S52: CAM laboral | W52: Cantidad a distribuir | X52: CAPEP | AB52: Cantidad a distribuir | AC52: CRIE | AG52: Cantidad a distribuir | AH52: UOP | AL52: Cantidad a distribuir | AM52: UAEBH | AQ52: Cantidad a distribuir | AR52: Otro | AV52: Nivel de avance de la acción | AW52: En caso de modificación, indique número de oficio | BA52: Describa brevemente el impacto pedagógico que se obtuvo con esta acción
D53: SEE | E53: Estudiantes | I53: SEE | J53: Estudiantes | N53: SEE | O53: Estudiantes | S53: SEE | T53: Estudiantes | X53: SEE | Y53: Estudiantes | AC53: SEE | AD53: Estudiantes | AH53: SEE | AI53: Estudiantes | AM53: SEE | AN53: Estudiantes | AR53: SEE | AS53: Estudiantes
E54: M | F54: H | G54: T | J54: M | K54: H | L54: T | O54: M | P54: H | Q54: T | T54: M | U54: H | V54: T | Y54: M | Z54: H | AA54: T | AD54: M | AE54: H | AF54: T | AI54: M | AJ54: H | AK54: T | AN54: M | AO54: H | AP54: T | AS54: M | AT54: H | AU54: T
A55: Cañón | B55: Proyector lcd, 3400 lúmenes, brillo de proyector, lámpara UHE 210 vatios, tecnología de proyección 3LCD, resolución de proyección XGA (1024 x 768), resolución de contraste 15000:1 dinámico | C55: 19 | D55: 16 | E55: 138 | F55: 344 | G55: =SUM(E55,F55) -> 482 | H55: 0 | I55: 0 | J55: 0 | K55: 0 | L55: =SUM(J55,K55) -> 0 | M55: 13 | N55: 12 | O55: 269 | P55: 468 | Q55: =SUM(O55,P55) -> 737 | R55: 0 | S55: 0 | T55: 0 | U55: 0 | V55: =SUM(T55,U55) -> 0 | W55: 0 | X55: 0 | Y55: 0 | Z55: 0 | AA55: =SUM(Y55,Z55) -> 0 | AB55: 0 | AC55: 0 | AD55: 0 | AE55: 0 | AF55: =SUM(AD55,AE55) -> 0 | AG55: 0 | AH55: 0 | AI55: 0 | AJ55: 0 | AK55: =SUM(AI55,AJ55) -> 0 | AL55: 0 | AM55: 0 | AN55: 0 | AO55: 0 | AP55: =SUM(AN55,AO55) -> 0 | AQ55: 0 | AR55: 0 | AS55: 0 | AT55: 0 | AU55: =SUM(AS55,AT55) -> 0 | AV55: Materiales adquiridos, falta entrega | AW55: N/A | BA55: N/A
A56: Equipo de cómputo | B56: Laptop, procesador intel core i5-1235 U 12 th gen (12 MB CACHÉ, 10 core 12 threads 4.40 Ghz turbo). Sistema operativo windows 11 home single en español. Microsoft office profesional 2021 en español. Adaptador de C.A.65 watt. Memoria ram 8 gb DDR4 3200 mhz. pantalla 16 pulgadas fhd (1920 x 1200) 60 hz led antirreflejo. teclado en español, tarjeta inalámbrica wifi 6E AX211, 2X2, 802.11ax, bluetooth. | C56: 8 | D56: 8 | E56: 45 | F56: 139 | G56: =SUM(E56,F56) -> 184 | H56: 0 | I56: 0 | J56: 0 | K56: 0 | L56: =SUM(J56,K56) -> 0 | M56: 3 | N56: 3 | O56: 37 | P56: 63 | Q56: =SUM(O56,P56) -> 100 | R56: 1 | S56: 1 | T56: 33 | U56: 33 | V56: =SUM(T56,U56) -> 66 | W56: 0 | X56: 0 | Y56: 0 | Z56: 0 | AA56: =SUM(Y56,Z56) -> 0 | AB56: 0 | AC56: 0 | AD56: 0 | AE56: 0 | AF56: =SUM(AD56,AE56) -> 0 | AG56: 0 | AH56: 0 | AI56: 0 | AJ56: 0 | AK56: =SUM(AI56,AJ56) -> 0 | AL56: 0 | AM56: 0 | AN56: 0 | AO56: 0 | AP56: =SUM(AN56,AO56) -> 0 | AQ56: 0 | AR56: 0 | AS56: 0 | AT56: 0 | AU56: =SUM(AS56,AT56) -> 0 | AV56: Materiales adquiridos, falta entrega | AW56: N/A | BA56: N/A
A57: Equipo de cómputo | B57: Pc escritorio: Intel®️ Core™️ i5 14500T vPro®️ (24MB cache, 14 cores, 20 threads, up to 4.8 GHz) Windows 11 Pro, inglés, español, francés y portugués de Brasil Intel®️ Graphics 8 GB: 1 x 8 GB, DDR5 256 GB, M.2 2230, PCIe NVMe, SSD, Class 35 23.8 pulgadas pantalla. | C57: 1 | D57: 1 | E57: 2 | F57: 8 | G57: 10 | H57: 0 | I57: 0 | J57: 0 | K57: 0 | L57: 0 | M57: 10 | N57: 10 | O57: 175 | P57: 251 | Q57: 426 | R57: 0 | S57: 0 | T57: 0 | U57: 0 | V57: 0 | W57: 0 | X57: 0 | Y57: 0 | Z57: 0 | AA57: 0 | AB57: 0 | AC57: 0 | AD57: 0 | AE57: 0 | AF57: 0 | AG57: 0 | AH57: 0 | AI57: 0 | AJ57: 0 | AK57: 0 | AL57: 0 | AM57: 0 | AN57: 0 | AO57: 0 | AP57: 0 | AQ57: 0 | AR57: 0 | AS57: 0 | AT57: 0 | AU57: 0 | AV57: Materiales adquiridos, falta entrega | AW57: N/A | BA57: N/A
A58: Impresora | B58: Multifuncional de inyección de tinta continua, volumen de impresión mensual 500 páginas aproximadamente, velocidad de impresión en negro 10 ppm, velocidad de impresión a color 5 ppm, interface ethernet integrada. | C58: 13 | D58: 13 | E58: 89 | F58: 248 | G58: 337 | H58: 0 | I58: 0 | J58: 0 | K58: 0 | L58: 0 | M58: 15 | N58: 15 | O58: 264 | P58: 391 | Q58: 655 | R58: 1 | S58: 1 | T58: 33 | U58: 33 | V58: 66 | W58: 0 | X58: 0 | Y58: 0 | Z58: 0 | AA58: 0 | AB58: 0 | AC58: 0 | AD58: 0 | AE58: 0 | AF58: 0 | AG58: 0 | AH58: 0 | AI58: 0 | AJ58: 0 | AK58: 0 | AL58: 0 | AM58: 0 | AN58: 0 | AO58: 0 | AP58: 0 | AQ58: 0 | AR58: 0 | AS58: 0 | AT58: 0 | AU58: 0 | AV58: Materiales adquiridos, falta entrega | AW58: N/A | BA58: N/A
A59: Enmicadora | B59: Enmicadora térmica fusión ancho 22 cm carta, 3.5 milésimas, dimensiones 14, 2L, x 12,6 w x 41, 4h centímetros. | C59: 1 | D59: 1 | E59: 11 | F59: 24 | G59: =SUM(E59,F59) -> 35 | H59: 0 | I59: 0 | J59: 0 | K59: 0 | L59: =SUM(J59,K59) -> 0 | M59: 6 | N59: 6 | O59: 123 | P59: 199 | Q59: =SUM(O59,P59) -> 322 | R59: 0 | S59: 0 | T59: 0 | U59: 0 | V59: =SUM(T59,U59) -> 0 | W59: 0 | X59: 0 | Y59: 0 | Z59: 0 | AA59: =SUM(Y59,Z59) -> 0 | AB59: 0 | AC59: 0 | AD59: 0 | AE59: 0 | AF59: =SUM(AD59,AE59) -> 0 | AG59: 0 | AH59: 0 | AI59: 0 | AJ59: 0 | AK59: =SUM(AI59,AJ59) -> 0 | AL59: 0 | AM59: 0 | AN59: 0 | AO59: 0 | AP59: =SUM(AN59,AO59) -> 0 | AQ59: 0 | AR59: 0 | AS59: 0 | AT59: 0 | AU59: =SUM(AS59,AT59) -> 0 | AV59: Materiales adquiridos, falta entrega | AW59: N/A | BA59: N/A
A60: Reproductor de video | B60: Smart tv, 50 pulgadas, diseño flat-FHD, resolución: 1920 x 1080, 16-7 70 hz, white color enhancer, mega contraste, connect share, POP integrado IP video close. | C60: 0 | D60: 0 | E60: 0 | F60: 0 | G60: 0 | H60: 0 | I60: 0 | J60: 0 | K60: 0 | L60: 0 | M60: 4 | N60: 4 | O60: 58 | P60: 74 | Q60: 132 | R60: 0 | S60: 0 | T60: 0 | U60: 0 | V60: 0 | W60: 0 | X60: 0 | Y60: 0 | Z60: 0 | AA60: 0 | AB60: 0 | AC60: 0 | AD60: 0 | AE60: 0 | AF60: 0 | AG60: 0 | AH60: 0 | AI60: 0 | AJ60: 0 | AK60: 0 | AL60: 0 | AM60: 0 | AN60: 0 | AO60: 0 | AP60: 0 | AQ60: 0 | AR60: 0 | AS60: 0 | AT60: 0 | AU60: 0 | AV60: Materiales adquiridos, falta entrega | AW60: N/A | BA60: N/A
A61: Otro (especifique) | B61: Teclado adaptado (Braille) para equipo computo. | C61: 4 | D61: 4 | E61: 3 | F61: 6 | G61: 9 | H61: 0 | I61: 0 | J61: 0 | K61: 0 | L61: 0 | M61: 7 | N61: 7 | O61: 4 | P61: 5 | Q61: 9 | R61: 0 | S61: 0 | T61: 0 | U61: 0 | V61: 0 | W61: 0 | X61: 0 | Y61: 0 | Z61: 0 | AA61: 0 | AB61: 0 | AC61: 0 | AD61: 0 | AE61: 0 | AF61: 0 | AG61: 0 | AH61: 0 | AI61: 0 | AJ61: 0 | AK61: 0 | AL61: 0 | AM61: 0 | AN61: 0 | AO61: 0 | AP61: 0 | AQ61: 0 | AR61: 0 | AS61: 0 | AT61: 0 | AU61: 0 | AV61: Materiales adquiridos, falta entrega | AW61: N/A | BA61: N/A
A62: Otro (especifique) | B62: Cámara video, cámara web para PC y portátil, 1080 p - micrófono, conexión USB, 1920x1080 hd resolución, clip adaptador de pantalla. | C62: 0 | D62: 0 | E62: 0 | F62: 0 | G62: 0 | H62: 0 | I62: 0 | J62: 0 | K62: 0 | L62: 0 | M62: 1 | N62: 1 | O62: 29 | P62: 51 | Q62: 80 | R62: 0 | S62: 0 | T62: 0 | U62: 0 | V62: 0 | W62: 0 | X62: 0 | Y62: 0 | Z62: 0 | AA62: 0 | AB62: 0 | AC62: 0 | AD62: 0 | AE62: 0 | AF62: 0 | AG62: 0 | AH62: 0 | AI62: 0 | AJ62: 0 | AK62: 0 | AL62: 0 | AM62: 0 | AN62: 0 | AO62: 0 | AP62: 0 | AQ62: 0 | AR62: 0 | AS62: 0 | AT62: 0 | AU62: 0 | AV62: Materiales adquiridos, falta entrega | AW62: N/A | BA62: N/A
A63: Otro (especifique) | B63: Pantalla interactiva, 75 M5A, conectividad rj-45 hdmi y vga, 165 x 92.8 cm, resolución de pantalla de 3840 x 2160 pixeles y retroliuminación led, sistema operativo Android 8.0 preinstalado. | C63: 0 | D63: 0 | E63: 0 | F63: 0 | G63: 0 | H63: 0 | I63: 0 | J63: 0 | K63: 0 | L63: 0 | M63: 6 | N63: 6 | O63: 165 | P63: 269 | Q63: 434 | R63: 0 | S63: 0 | T63: 0 | U63: 0 | V63: 0 | W63: 0 | X63: 0 | Y63: 0 | Z63: 0 | AA63: 0 | AB63: 0 | AC63: 0 | AD63: 0 | AE63: 0 | AF63: 0 | AG63: 0 | AH63: 0 | AI63: 0 | AJ63: 0 | AK63: 0 | AL63: 0 | AM63: 0 | AN63: 0 | AO63: 0 | AP63: 0 | AQ63: 0 | AR63: 0 | AS63: 0 | AT63: 0 | AU63: 0 | AV63: Materiales adquiridos, falta entrega | AW63: N/A | BA63: N/A
A64: Otro (especifique) | B64: Engargoladora, para arillo metálico y espiral. | C64: 1 | D64: 1 | E64: 11 | F64: 24 | G64: 35 | H64: 0 | I64: 0 | J64: 0 | K64: 0 | L64: 0 | M64: 0 | N64: 0 | O64: 0 | P64: 0 | Q64: 0 | R64: 0 | S64: 0 | T64: 0 | U64: 0 | V64: 0 | W64: 0 | X64: 0 | Y64: 0 | Z64: 0 | AA64: 0 | AB64: 0 | AC64: 0 | AD64: 0 | AE64: 0 | AF64: 0 | AG64: 0 | AH64: 0 | AI64: 0 | AJ64: 0 | AK64: 0 | AL64: 0 | AM64: 0 | AN64: 0 | AO64: 0 | AP64: 0 | AQ64: 0 | AR64: 0 | AS64: 0 | AT64: 0 | AU64: 0 | AV64: Materiales adquiridos, falta entrega | AW64: N/A | BA64: N/A
A65: Otro (especifique) | B65: Magnificador de pantalla, 3d lupa black, 18 x 15 x 2 cm, inalámbrica con peso del producto de 1kg. | C65: 3 | D65: 1 | E65: 1 | F65: 2 | G65: 3 | H65: 0 | I65: 0 | J65: 0 | K65: 0 | L65: 0 | M65: 0 | N65: 0 | O65: 0 | P65: 0 | Q65: 0 | R65: 0 | S65: 0 | T65: 0 | U65: 0 | V65: 0 | W65: 0 | X65: 0 | Y65: 0 | Z65: 0 | AA65: 0 | AB65: 0 | AC65: 0 | AD65: 0 | AE65: 0 | AF65: 0 | AG65: 0 | AH65: 0 | AI65: 0 | AJ65: 0 | AK65: 0 | AL65: 0 | AM65: 0 | AN65: 0 | AO65: 0 | AP65: 0 | AQ65: 0 | AR65: 0 | AS65: 0 | AT65: 0 | AU65: 0 | AV65: Materiales adquiridos, falta entrega | AW65: N/A | BA65: N/A
A66: Total | C66: =SUM(C55:C65) -> 50 | D66: 45 | E66: 300 | F66: 795 | G66: 1095 | H66: 0 | I66: 0 | J66: 0 | K66: 0 | L66: 0 | M66: 65 | N66: 64 | O66: 1124 | P66: 1771 | Q66: 2895 | R66: 2 | S66: 2 | T66: 66 | U66: 66 | V66: 132 | W66: 0 | X66: 0 | Y66: 0 | Z66: 0 | AA66: 0 | AB66: 0 | AC66: 0 | AD66: 0 | AE66: 0 | AF66: 0 | AG66: 0 | AH66: 0 | AI66: 0 | AJ66: 0 | AK66: 0 | AL66: 0 | AM66: 0 | AN66: 0 | AO66: 0 | AP66: 0 | AQ66: 0 | AR66: 0 | AS66: 0 | AT66: 0 | AU66: 0
A67: En caso de requerir alguna precisión o aclaración, describa brevemente:
A68: MATERIALES EN ALMACEN, FALTA ENTREGA A LOS SERVICIOS BENEFICIARIOS
A70: 3.6 Adquirir herramientas, utensilios, enseres domésticos y aparatos electrónicos que se requieren para impartir talleres laborales que se ofertan en los Centros de Atención Múltiple laboral y con Formación para el Trabajo
C72: Beneficiados CAM b con FpT | F72: ='Servicios EE 2024'!C23 -> 28 | H72: Beneficiados CAM laboral | K72: ='Servicios EE 2024'!D21 -> 2
A73: Taller a equipar | B73: Herramienta, utensilio, mobiliario o aparato | C73: Cantidad a distribuir | D73: CAM básico con FpT | H73: Cantidad a distribuir | I73: CAM laboral | M73: Nivel de avance de la acción | P73: En caso de modificación, indique número de oficio | T73: Describa brevemente el impacto pedagógico que se obtuvo con esta acción
D74: SEE | E74: Estudiantes | I74: SEE | J74: Estudiantes
E75: M | F75: H | G75: T | J75: M | K75: H | L75: T
A76: Taller de lavandería | B76: 1 Lavadora, 1 Secadora, 1 Estante de metal (cesta) | C76: 6 | D76: 6 | E76: 93 | F76: 126 | G76: =SUM(E76,F76) -> 219 | H76: 0 | I76: 0 | J76: 0 | K76: 0 | L76: =SUM(J76,K76) -> 0 | M76: Materiales adquiridos, falta entrega | P76: N/A | T76: N/A
A77: Taller de Cocina | B77: 1 Juego de vaporeras, 1 Olla presto 6lts, 1 Sarten 6 lts con tapa, 100 Platos hondos, 100 platos extendidos, 100 vasos de vidrio, 100 tazas de ceramica, 100 juego de cubiertos, 2 tanques de gas, 1 cafetera 20 tazas, 1 licuadora industrial, 1 batidora de pedestal, 20 tenedores, 1 comal, 25 cucharas grandes, 15 cuchillos, 1 estufa industrial, 2 tablas para picar, 2 tarja doble tina | C77: 8 | D77: 8 | E77: 130 | F77: 180 | G77: =SUM(E77,F77) -> 310 | H77: 0 | I77: 0 | J77: 0 | K77: 0 | L77: =SUM(J77,K77) -> 0 | M77: Materiales adquiridos, falta entrega | P77: N/A | T77: N/A
A78: Taller de repostería | B78: 1 Máquina para hacer churros, 1 crepera, 3 moldes para repostería, 10 mandiles, 1 cazo de cobre, 4 cucharon, 1 escurridor para aceite, 2 vitroleras plástico, 2 cucharones para agua, 5 tenazas, 1 freidora, 1 maquina palomera, 1 batidora industrial, 1 batería de sartenes, 1 moldes para pastel, 1 horno electrico, 1 licuadora, 1 batidora manual, 1 juego de tazas medidoras. | C78: 8 | D78: 8 | E78: 172 | F78: 265 | G78: 437 | H78: 0 | I78: 0 | J78: 0 | K78: 0 | L78: 0 | M78: Materiales adquiridos, falta entrega | P78: N/A | T78: N/A
A79: Empaquetado | B79: 3 Pistola de silicón Industrial, 2 Cortadoras, 2 Tijeras eléctricas, 2 Selladora industrial, 1 Aparato para emplayado de alimentos | C79: 1 | D79: 1 | E79: 19 | F79: 26 | G79: 45 | H79: 0 | I79: 0 | J79: 0 | K79: 0 | L79: 0 | M79: Materiales adquiridos, falta entrega | P79: N/A | T79: N/A
A80: Manualidades | B80: 1 ENMICADORA, 2 GUILLOTINA | C80: 2 | D80: 2 | E80: 27 | F80: 33 | G80: 60 | H80: 0 | I80: 0 | J80: 0 | K80: 0 | L80: 0 | M80: Materiales adquiridos, falta entrega | P80: N/A | T80: N/A
A81: Jardinería/Herramientas | B81: 1 Malla sombra 6x6, 2 Extintores, 1 Diablito, 1 Escalera de tripie 3 mts, 1 Tijeras para podar, 1 Asadones, 1 Carretilla, 1 Pala, 1 Desbrozadora, 1 Rastrillos, 1 Mangueras, 1 Caja de herramientas | C81: 5 | D81: 5 | E81: 161 | F81: 271 | G81: 432 | H81: 2 | I81: 2 | J81: 54 | K81: 67 | L81: 121 | M81: Materiales adquiridos, falta entrega | P81: N/A | T81: N/A
A82: Carpintería | B82: 1 Lijadora de 1/4, 1 Martillo de carpintero, 1 Serruchos de costilla de hoja, 1 Juego de brocas p/router, 1 Cintas metricas, 1 Taladros de 3/8, Berbiqui, 1 Caladora eléctrica, 1 Clavadora neumática, 1 Pistola de aire, 1 Cepillos, 1 Escofinas, 1 Escuadras de 8", 1 Router dos manos, 1 Router una mano, 1 Compresor, 1 Pulidora, 1 Disco p/sierra diente diamante 10" entrada 5/8, 1 Sierra circular, 1 Taladro inhalámbrico, 1 Sierra de banco, 1 Sierra Ingletadora. | C82: 4 | D82: 4 | E82: 80 | F82: 122 | G82: 202 | H82: 2 | I82: 2 | J82: 54 | K82: 67 | L82: 121 | M82: Materiales adquiridos, falta entrega | P82: N/A | T82: N/A
A83: Corte y confección | B83: 1 Máquina remalladora industrial de 5 hilos, 1 Máquina remalladora industrial MC 500E, 1 Máquina estampadora, 2 Plancha industrial de vapor | C83: 0 | D83: 0 | E83: 0 | F83: 0 | G83: 0 | H83: 2 | I83: 2 | J83: 54 | K83: 67 | L83: 121 | M83: Materiales adquiridos, falta entrega | P83: N/A | T83: N/A
A84: Autolavado | B84: 1 HIDROLAVADORA, 1 TANQUE ESPUMADOR, 1 ASPOIRADORA. | C84: 1 | D84: 1 | E84: 14 | F84: 21 | G84: 35 | H84: 0 | I84: 0 | J84: 0 | K84: 0 | L84: 0 | M84: Materiales adquiridos, falta entrega | P84: N/A | T84: N/A
A85: Taller Panadería | B85: 1 Batidora industrial, 1 Licuadora industrial, 1 Estufa 6 quemadores, 1 Refrigerador, 1 Maquina para donas, 1 Freidora de aceite, 1 Microondas | C85: 7 | D85: 7 | E85: 97 | F85: 129 | G85: 226 | H85: 1 | I85: 1 | J85: 33 | K85: 33 | L85: 66 | M85: Materiales adquiridos, falta entrega | P85: N/A | T85: N/A
A86: Total | C86: =SUM(C76:C85) -> 42 | D86: 42 | E86: 793 | F86: 1173 | G86: 1966 | H86: 7 | I86: 7 | J86: 195 | K86: 234 | L86: 429
A87: En caso de requerir alguna precisión o aclaración, describa brevemente:
A88: MATERIALES EN ALMACEN, FALTA ENTREGA A LOS SERVICIOS BENEFICIARIOS
A90: 3.9 Dotar de mobiliario ordinario y/o adaptado para las y los estudiantes con discapacidad
C92: Beneficiados USAER | F92: ='Servicios EE 2024'!B21 -> 81 | H92: Beneficiados CAM básico | K92: ='Servicios EE 2024'!C21 -> 0 | M92: Beneficiados CAM b con FpT | P92: ='Servicios EE 2024'!C23 -> 28 | R92: Beneficiados CAM laboral | U92: ='Servicios EE 2024'!D21 -> 2 | W92: Beneficiados CAPEP | Z92: ='Servicios EE 2024'!E21 -> 0 | AB92: Beneficiados CRIE | AE92: ='Servicios EE 2024'!F21 -> 0 | AG92: Beneficiados UOP | AJ92: ='Servicios EE 2024'!G21 -> 0 | AL92: Beneficiados UAEBH | AO92: ='Servicios EE 2024'!H21 -> 0 | AQ92: Beneficiados Otro | AT92: ='Servicios EE 2024'!I21 -> 0
A93: Especifique el tipo de mobiliario | C93: Cantidad a distribuir | D93: USAER | H93: Cantidad a distribuir | I93: CAM básico | M93: Cantidad a distribuir | N93: CAM básico con FpT | R93: Cantidad a distribuir | S93: CAM laboral | W93: Cantidad a distribuir | X93: CAPEP | AB93: Cantidad a distribuir | AC93: CRIE | AG93: Cantidad a distribuir | AH93: UOP | AL93: Cantidad a distribuir | AM93: UAEBH | AQ93: Cantidad a distribuir | AR93: Otro | AV93: Nivel de avance de la acción | AW93: En caso de modificación, indique número de oficio | BA93: Describa brevemente el impacto pedagógico que se obtuvo con esta acción
D94: SEE | E94: Estudiantes | I94: SEE | J94: Estudiantes | N94: SEE | O94: Estudiantes | S94: SEE | T94: Estudiantes | X94: SEE | Y94: Estudiantes | AC94: SEE | AD94: Estudiantes | AH94: SEE | AI94: Estudiantes | AM94: SEE | AN94: Estudiantes | AR94: SEE | AS94: Estudiantes
E95: M | F95: H | G95: T | J95: M | K95: H | L95: T | O95: M | P95: H | Q95: T | T95: M | U95: H | V95: T | Y95: M | Z95: H | AA95: T | AD95: M | AE95: H | AF95: T | AI95: M | AJ95: H | AK95: T | AN95: M | AO95: H | AP95: T | AS95: M | AT95: H | AU95: T
A96: Pintarrón 1.50 x 90 cm | C96: 66 | D96: 14 | E96: 93 | F96: 238 | G96: =SUM(E96,F96) -> 331 | H96: 0 | I96: 0 | J96: 0 | K96: 0 | L96: =SUM(J96,K96) -> 0 | M96: 23 | N96: 9 | O96: 156 | P96: 268 | Q96: =SUM(O96,P96) -> 424 | R96: 0 | S96: 0 | T96: 0 | U96: 0 | V96: =SUM(T96,U96) -> 0 | W96: 0 | X96: 0 | Y96: 0 | Z96: 0 | AA96: =SUM(Y96,Z96) -> 0 | AB96: 0 | AC96: 0 | AD96: 0 | AE96: 0 | AF96: =SUM(AD96,AE96) -> 0 | AG96: 0 | AH96: 0 | AI96: 0 | AJ96: 0 | AK96: =SUM(AI96,AJ96) -> 0 | AL96: 0 | AM96: 0 | AN96: 0 | AO96: 0 | AP96: =SUM(AN96,AO96) -> 0 | AQ96: 0 | AR96: 0 | AS96: 0 | AT96: 0 | AU96: =SUM(AS96,AT96) -> 0 | AV96: Materiales adquiridos, falta entrega | AW96: N/A | BA96: N/A
A97: Sillas adaptadas para PCI | C97: 0 | D97: 0 | E97: 0 | F97: 0 | G97: =SUM(E97,F97) -> 0 | H97: 0 | I97: 0 | J97: 0 | K97: 0 | L97: =SUM(J97,K97) -> 0 | M97: 5 | N97: 1 | O97: 13 | P97: 23 | Q97: =SUM(O97,P97) -> 36 | R97: 0 | S97: 0 | T97: 0 | U97: 0 | V97: =SUM(T97,U97) -> 0 | W97: 0 | X97: 0 | Y97: 0 | Z97: 0 | AA97: =SUM(Y97,Z97) -> 0 | AB97: 0 | AC97: 0 | AD97: 0 | AE97: 0 | AF97: =SUM(AD97,AE97) -> 0 | AG97: 0 | AH97: 0 | AI97: 0 | AJ97: 0 | AK97: =SUM(AI97,AJ97) -> 0 | AL97: 0 | AM97: 0 | AN97: 0 | AO97: 0 | AP97: =SUM(AN97,AO97) -> 0 | AQ97: 0 | AR97: 0 | AS97: 0 | AT97: 0 | AU97: =SUM(AS97,AT97) -> 0 | AV97: Materiales adquiridos, falta entrega | AW97: N/A | BA97: N/A
A98: Mesa trapezoidal | C98: 0 | D98: 0 | E98: 0 | F98: 0 | G98: 0 | H98: 0 | I98: 0 | J98: 0 | K98: 0 | L98: 0 | M98: 10 | N98: 1 | O98: 29 | P98: 55 | Q98: 84 | R98: 0 | S98: 0 | T98: 0 | U98: 0 | V98: 0 | W98: 0 | X98: 0 | Y98: 0 | Z98: 0 | AA98: 0 | AB98: 0 | AC98: 0 | AD98: 0 | AE98: 0 | AF98: 0 | AG98: 0 | AH98: 0 | AI98: 0 | AJ98: 0 | AK98: 0 | AL98: 0 | AM98: 0 | AN98: 0 | AO98: 0 | AP98: 0 | AQ98: 0 | AR98: 0 | AS98: 0 | AT98: 0 | AU98: 0 | AV98: Materiales adquiridos, falta entrega | AW98: N/A | BA98: N/A
A99: Cambiador de pañal de adulto para baño | C99: 0 | D99: 0 | E99: 0 | F99: 0 | G99: 0 | H99: 0 | I99: 0 | J99: 0 | K99: 0 | L99: 0 | M99: 6 | N99: 4 | O99: 62 | P99: 94 | Q99: 156 | R99: 0 | S99: 0 | T99: 0 | U99: 0 | V99: 0 | W99: 0 | X99: 0 | Y99: 0 | Z99: 0 | AA99: 0 | AB99: 0 | AC99: 0 | AD99: 0 | AE99: 0 | AF99: 0 | AG99: 0 | AH99: 0 | AI99: 0 | AJ99: 0 | AK99: 0 | AL99: 0 | AM99: 0 | AN99: 0 | AO99: 0 | AP99: 0 | AQ99: 0 | AR99: 0 | AS99: 0 | AT99: 0 | AU99: 0 | AV99: Materiales adquiridos, falta entrega | AW99: N/A | BA99: N/A
A100: Sillas para alumno | C100: 0 | D100: 0 | E100: 0 | F100: 0 | G100: 0 | H100: 0 | I100: 0 | J100: 0 | K100: 0 | L100: 0 | M100: 40 | N100: 1 | O100: 29 | P100: 51 | Q100: 80 | R100: 0 | S100: 0 | T100: 0 | U100: 0 | V100: 0 | W100: 0 | X100: 0 | Y100: 0 | Z100: 0 | AA100: 0 | AB100: 0 | AC100: 0 | AD100: 0 | AE100: 0 | AF100: 0 | AG100: 0 | AH100: 0 | AI100: 0 | AJ100: 0 | AK100: 0 | AL100: 0 | AM100: 0 | AN100: 0 | AO100: 0 | AP100: 0 | AQ100: 0 | AR100: 0 | AS100: 0 | AT100: 0 | AU100: 0 | AV100: Materiales adquiridos, falta entrega | AW100: N/A | BA100: N/A
A101: Mesas binarias | C101: 0 | D101: 0 | E101: 0 | F101: 0 | G101: 0 | H101: 0 | I101: 0 | J101: 0 | K101: 0 | L101: 0 | M101: 20 | N101: 1 | O101: 29 | P101: 51 | Q101: 80 | R101: 0 | S101: 0 | T101: 0 | U101: 0 | V101: 0 | W101: 0 | X101: 0 | Y101: 0 | Z101: 0 | AA101: 0 | AB101: 0 | AC101: 0 | AD101: 0 | AE101: 0 | AF101: 0 | AG101: 0 | AH101: 0 | AI101: 0 | AJ101: 0 | AK101: 0 | AL101: 0 | AM101: 0 | AN101: 0 | AO101: 0 | AP101: 0 | AQ101: 0 | AR101: 0 | AS101: 0 | AT101: 0 | AU101: 0 | AV101: Materiales adquiridos, falta entrega | AW101: N/A | BA101: N/A
A102: Mesas grandes para taller | C102: 0 | D102: 0 | E102: 0 | F102: 0 | G102: =SUM(E102,F102) -> 0 | H102: 0 | I102: 0 | J102: 0 | K102: 0 | L102: =SUM(J102,K102) -> 0 | M102: 3 | N102: 1 | O102: 29 | P102: 51 | Q102: =SUM(O102,P102) -> 80 | R102: 0 | S102: 0 | T102: 0 | U102: 0 | V102: =SUM(T102,U102) -> 0 | W102: 0 | X102: 0 | Y102: 0 | Z102: 0 | AA102: =SUM(Y102,Z102) -> 0 | AB102: 0 | AC102: 0 | AD102: 0 | AE102: 0 | AF102: =SUM(AD102,AE102) -> 0 | AG102: 0 | AH102: 0 | AI102: 0 | AJ102: 0 | AK102: =SUM(AI102,AJ102) -> 0 | AL102: 0 | AM102: 0 | AN102: 0 | AO102: 0 | AP102: =SUM(AN102,AO102) -> 0 | AQ102: 0 | AR102: 0 | AS102: 0 | AT102: 0 | AU102: =SUM(AS102,AT102) -> 0 | AV102: Materiales adquiridos, falta entrega | AW102: N/A | BA102: N/A
A103: Silla ordinaria | C103: 0 | D103: 0 | E103: 0 | F103: 0 | G103: 0 | H103: 0 | I103: 0 | J103: 0 | K103: 0 | L103: 0 | M103: 37 | N103: 3 | O103: 48 | P103: 67 | Q103: 115 | R103: 0 | S103: 0 | T103: 0 | U103: 0 | V103: 0 | W103: 0 | X103: 0 | Y103: 0 | Z103: 0 | AA103: 0 | AB103: 0 | AC103: 0 | AD103: 0 | AE103: 0 | AF103: 0 | AG103: 0 | AH103: 0 | AI103: 0 | AJ103: 0 | AK103: 0 | AL103: 0 | AM103: 0 | AN103: 0 | AO103: 0 | AP103: 0 | AQ103: 0 | AR103: 0 | AS103: 0 | AT103: 0 | AU103: 0 | AV103: Materiales adquiridos, falta entrega | AW103: N/A | BA103: N/A
A104: Mesa ordinaria | C104: 0 | D104: 0 | E104: 0 | F104: 0 | G104: 0 | H104: 0 | I104: 0 | J104: 0 | K104: 0 | L104: 0 | M104: 14 | N104: 3 | O104: 48 | P104: 67 | Q104: 115 | R104: 0 | S104: 0 | T104: 0 | U104: 0 | V104: 0 | W104: 0 | X104: 0 | Y104: 0 | Z104: 0 | AA104: 0 | AB104: 0 | AC104: 0 | AD104: 0 | AE104: 0 | AF104: 0 | AG104: 0 | AH104: 0 | AI104: 0 | AJ104: 0 | AK104: 0 | AL104: 0 | AM104: 0 | AN104: 0 | AO104: 0 | AP104: 0 | AQ104: 0 | AR104: 0 | AS104: 0 | AT104: 0 | AU104: 0 | AV104: Materiales adquiridos, falta entrega | AW104: N/A | BA104: N/A
A105: Atril de madera | C105: 0 | D105: 0 | E105: 0 | F105: 0 | G105: 0 | H105: 0 | I105: 0 | J105: 0 | K105: 0 | L105: 0 | M105: 1 | N105: 1 | O105: 19 | P105: 26 | Q105: 45 | R105: 0 | S105: 0 | T105: 0 | U105: 0 | V105: 0 | W105: 0 | X105: 0 | Y105: 0 | Z105: 0 | AA105: 0 | AB105: 0 | AC105: 0 | AD105: 0 | AE105: 0 | AF105: 0 | AG105: 0 | AH105: 0 | AI105: 0 | AJ105: 0 | AK105: 0 | AL105: 0 | AM105: 0 | AN105: 0 | AO105: 0 | AP105: 0 | AQ105: 0 | AR105: 0 | AS105: 0 | AT105: 0 | AU105: 0 | AV105: Materiales adquiridos, falta entrega | AW105: N/A | BA105: N/A
A106: Bipedestador | C106: 0 | D106: 0 | E106: 0 | F106: 0 | G106: 0 | H106: 0 | I106: 0 | J106: 0 | K106: 0 | L106: 0 | M106: 3 | N106: 1 | O106: 5 | P106: 2 | Q106: 7 | R106: 0 | S106: 0 | T106: 0 | U106: 0 | V106: 0 | W106: 0 | X106: 0 | Y106: 0 | Z106: 0 | AA106: 0 | AB106: 0 | AC106: 0 | AD106: 0 | AE106: 0 | AF106: 0 | AG106: 0 | AH106: 0 | AI106: 0 | AJ106: 0 | AK106: 0 | AL106: 0 | AM106: 0 | AN106: 0 | AO106: 0 | AP106: 0 | AQ106: 0 | AR106: 0 | AS106: 0 | AT106: 0 | AU106: 0 | AV106: Materiales adquiridos, falta entrega | AW106: N/A | BA106: N/A
A107: Silla de plástico | C107: 0 | D107: 0 | E107: 0 | F107: 0 | G107: 0 | H107: 0 | I107: 0 | J107: 0 | K107: 0 | L107: 0 | M107: 10 | N107: 1 | O107: 15 | P107: 20 | Q107: 35 | R107: 0 | S107: 0 | T107: 0 | U107: 0 | V107: 0 | W107: 0 | X107: 0 | Y107: 0 | Z107: 0 | AA107: 0 | AB107: 0 | AC107: 0 | AD107: 0 | AE107: 0 | AF107: 0 | AG107: 0 | AH107: 0 | AI107: 0 | AJ107: 0 | AK107: 0 | AL107: 0 | AM107: 0 | AN107: 0 | AO107: 0 | AP107: 0 | AQ107: 0 | AR107: 0 | AS107: 0 | AT107: 0 | AU107: 0 | AV107: Materiales adquiridos, falta entrega | AW107: N/A | BA107: N/A
A108: Mesa de acero inoxidable | C108: 0 | D108: 0 | E108: 0 | F108: 0 | G108: 0 | H108: 0 | I108: 0 | J108: 0 | K108: 0 | L108: 0 | M108: 5 | N108: 2 | O108: 66 | P108: 105 | Q108: 171 | R108: 10 | S108: 1 | T108: 33 | U108: 33 | V108: 66 | W108: 0 | X108: 0 | Y108: 0 | Z108: 0 | AA108: 0 | AB108: 0 | AC108: 0 | AD108: 0 | AE108: 0 | AF108: 0 | AG108: 0 | AH108: 0 | AI108: 0 | AJ108: 0 | AK108: 0 | AL108: 0 | AM108: 0 | AN108: 0 | AO108: 0 | AP108: 0 | AQ108: 0 | AR108: 0 | AS108: 0 | AT108: 0 | AU108: 0 | AV108: Materiales adquiridos, falta entrega | AW108: N/A | BA108: N/A
A109: Estantes metálicos | C109: 0 | D109: 0 | E109: 0 | F109: 0 | G109: 0 | H109: 0 | I109: 0 | J109: 0 | K109: 0 | L109: 0 | M109: 21 | N109: 5 | O109: 66 | P109: 108 | Q109: 174 | R109: 0 | S109: 0 | T109: 0 | U109: 0 | V109: 0 | W109: 0 | X109: 0 | Y109: 0 | Z109: 0 | AA109: 0 | AB109: 0 | AC109: 0 | AD109: 0 | AE109: 0 | AF109: 0 | AG109: 0 | AH109: 0 | AI109: 0 | AJ109: 0 | AK109: 0 | AL109: 0 | AM109: 0 | AN109: 0 | AO109: 0 | AP109: 0 | AQ109: 0 | AR109: 0 | AS109: 0 | AT109: 0 | AU109: 0 | AV109: Materiales adquiridos, falta entrega | AW109: N/A | BA109: N/A
A110: Mueble organizador de madera | C110: 0 | D110: 0 | E110: 0 | F110: 0 | G110: 0 | H110: 0 | I110: 0 | J110: 0 | K110: 0 | L110: 0 | M110: 2 | N110: 1 | O110: 28 | P110: 43 | Q110: 71 | R110: 0 | S110: 0 | T110: 0 | U110: 0 | V110: 0 | W110: 0 | X110: 0 | Y110: 0 | Z110: 0 | AA110: 0 | AB110: 0 | AC110: 0 | AD110: 0 | AE110: 0 | AF110: 0 | AG110: 0 | AH110: 0 | AI110: 0 | AJ110: 0 | AK110: 0 | AL110: 0 | AM110: 0 | AN110: 0 | AO110: 0 | AP110: 0 | AQ110: 0 | AR110: 0 | AS110: 0 | AT110: 0 | AU110: 0 | AV110: Materiales adquiridos, falta entrega | AW110: N/A | BA110: N/A
A111: Total | C111: 66 | D111: =SUM(D96:D110) -> 14 | E111: 93 | F111: 238 | G111: 331 | H111: 0 | I111: 0 | J111: 0 | K111: 0 | L111: 0 | M111: 200 | N111: 35 | O111: 642 | P111: 1031 | Q111: 1673 | R111: 10 | S111: 1 | T111: 33 | U111: 33 | V111: 66 | W111: 0 | X111: 0 | Y111: 0 | Z111: 0 | AA111: 0 | AB111: 0 | AC111: 0 | AD111: 0 | AE111: 0 | AF111: 0 | AG111: 0 | AH111: 0 | AI111: 0 | AJ111: 0 | AK111: 0 | AL111: 0 | AM111: 0 | AN111: 0 | AO111: 0 | AP111: 0 | AQ111: 0 | AR111: 0 | AS111: 0 | AT111: 0 | AU111: 0
A112: En caso de requerir alguna precisión o aclaración, describa brevemente:
A113: MATERIALES EN ALMACEN, FALTA ENTREGA A LOS SERVICIOS BENEFICIARIOS
A115: 3.10 Adquirir equipamiento y materiales para aulas multisensoriales
C117: Beneficiados CAM básico | F117: ='Servicios EE 2024'!C21 -> 0 | H117: Beneficiados CAM b con FpT | K117: ='Servicios EE 2024'!C23 -> 28 | M117: Beneficiados CAM laboral | P117: ='Servicios EE 2024'!D21 -> 2
A118: Material adquirido | C118: Cantidad a distribuir | D118: CAM básico | H118: Cantidad a distribuir | I118: CAM básico con FpT | M118: Cantidad a distribuir | N118: CAM laboral | R118: Nivel de avance de la acción | U118: En caso de modificación, indique número de oficio | Y118: Describa brevemente el impacto pedagógico que se obtuvo con esta acción
D119: SEE | E119: Estudiantes | I119: SEE | J119: Estudiantes | N119: SEE | O119: Estudiantes
E120: M | F120: H | G120: T | J120: M | K120: H | L120: T | O120: M | P120: H | Q120: T
A121: PAQUETE 1 1 COLUMPIO GIRATORIO DE 100 A 300 KGS; 1 COLUMPIO RECTANGULAR 1 METRO POR 60 CMS; 1 COLUMPIO DE DISCO; 1 COLUMPIO DE CUERDA DE 2 MTS; 2 ESPALDERA HORIZONTAL Y VERTICAL; 5 PELOTAS DE PESO; 5 COLCHONETAS DE 2 X 2; 2 TRAMPOLÍN DE 90 CMS DE DIAMETRO; 1 BRINCOLIN 3 METROS DE DIAMETRO; 3 PELOTA DE EQUILIBRIO; 1 RULO DE ESTIMULACIÓN DE 1 METRO DE DIAMETRO; 2 PISTOLA DE MASAJE; 2 PELOTA DE BOBATH 75 CM; 1 ESPEJO DE PARED; | C121: 0 | D121: 0 | E121: 0 | F121: 0 | G121: =SUM(E121,F121) -> 0 | H121: 10 | I121: 10 | J121: 208 | K121: 287 | L121: =SUM(J121,K121) -> 495 | M121: 0 | N121: 0 | O121: 0 | P121: 0 | Q121: =SUM(O121,P121) -> 0 | R121: Materiales adquiridos, falta entrega | U121: N/A | Y121: N/A
A122: Total | C122: =SUM(C121:C121) -> 0 | D122: 0 | E122: 0 | F122: 0 | G122: 0 | H122: 10 | I122: 10 | J122: 208 | K122: 0 | L122: =SUM(L121:L121) -> 495 | M122: 0 | N122: 0 | O122: 0 | P122: 0 | Q122: 0
A123: En caso de requerir alguna precisión o aclaración, describa brevemente:
A124: MATERIALES EN ALMACEN, FALTA ENTREGA A LOS SERVICIOS BENEFICIARIOS

Sheet 3. Equipamiento específico (AS)
AG1: Subsecretaría de Educación Básica Dirección General de Desarrollo Curricular Dirección de Fortalecimiento Curricular para la Formación Personal y Social en la Educación Básica Educación Especial
A6: Componente: 3. Equipamiento específico en beneficio de estudiantes con aptitudes sobresalientes
A8: 3.11 Dotar de material didáctico especializado para estudiantes con aptitudes sobresalientes
C10: Focalizados USAER | F10: ='Servicios EE 2024'!M21 -> 81 | H10: Focalizados CAPEP | K10: ='Servicios EE 2024'!N21 -> 0 | M10: Focalizados CRIE | P10: ='Servicios EE 2024'!O21 -> 0 | R10: Focalizados UOP | U10: ='Servicios EE 2024'!P21 -> 0 | W10: Focalizados UAEBH | Z10: ='Servicios EE 2024'!Q21 -> 0 | AB10: Focalizados Otro | AE10: ='Servicios EE 2024'!R21 -> 0
A11: Tipo de materiales (seleccione) | B11: Material adquirido | C11: Cantidad a distribuir | D11: USAER | H11: Cantidad a distribuir | I11: CAPEP | M11: Cantidad a distribuir | N11: CRIE | R11: Cantidad a distribuir | S11: UOP | W11: Cantidad a distribuir | X11: UAEBH | AB11: Cantidad a distribuir | AC11: Otro | AG11: Nivel de avance de la acción | AH11: En caso de modificación, indique número de oficio | AL11: Describa brevemente el impacto pedagógico que se obtuvo con esta acción
D12: SEE | E12: Estudiantes | I12: SEE | J12: Estudiantes | N12: SEE | O12: Estudiantes | S12: SEE | T12: Estudiantes | X12: SEE | Y12: Estudiantes | AC12: SEE | AD12: Estudiantes
E13: M | F13: H | G13: T | J13: M | K13: H | L13: T | O13: M | P13: H | Q13: T | T13: M | U13: H | V13: T | Y13: M | Z13: H | AA13: T | AD13: M | AE13: H | AF13: T
A14: Otro (especifique) | B14: 1 Kit de robótica preescolar | C14: 48 | D14: 16 | E14: 32 | F14: 54 | G14: =SUM(E14,F14) -> 86 | H14: 0 | I14: 0 | J14: 0 | K14: 0 | L14: =SUM(J14,K14) -> 0 | M14: 0 | N14: 0 | O14: 0 | P14: 0 | Q14: 0 | R14: 0 | S14: 0 | T14: 0 | U14: 0 | V14: =SUM(T14,U14) -> 0 | W14: 0 | X14: 0 | Y14: 0 | Z14: 0 | AA14: =SUM(Y14,Z14) -> 0 | AB14: 0 | AC14: 0 | AD14: 0 | AE14: 0 | AF14: =SUM(AD14,AE14) -> 0 | AG14: Materiales adquiridos, falta entrega | AH14: N/A | AL14: N/A
A15: Otro (especifique) | B15: Paquete con 6 kit de robótica primaria | C15: 37 | D15: 37 | E15: 79 | F15: 94 | G15: =SUM(E15,F15) -> 173 | H15: 0 | I15: 0 | J15: 0 | K15: 0 | L15: =SUM(J15,K15) -> 0 | M15: 0 | N15: 0 | O15: 0 | P15: 0 | Q15: =SUM(O15,P15) -> 0 | R15: 0 | S15: 0 | T15: 0 | U15: 0 | V15: =SUM(T15,U15) -> 0 | W15: 0 | X15: 0 | Y15: 0 | Z15: 0 | AA15: =SUM(Y15,Z15) -> 0 | AB15: 0 | AC15: 0 | AD15: 0 | AE15: 0 | AF15: =SUM(AD15,AE15) -> 0 | AG15: Materiales adquiridos, falta entrega | AH15: N/A | AL15: N/A
A16: Otro (especifique) | B16: 1 Kit de robótica secundaria | C16: 20 | D16: 6 | E16: 19 | F16: 15 | G16: 34 | H16: 0 | I16: 0 | J16: 0 | K16: 0 | L16: 0 | M16: 0 | N16: 0 | O16: 0 | P16: 0 | Q16: 0 | R16: 0 | S16: 0 | T16: 0 | U16: 0 | V16: 0 | W16: 0 | X16: 0 | Y16: 0 | Z16: 0 | AA16: 0 | AB16: 0 | AC16: 0 | AD16: 0 | AE16: 0 | AF16: 0 | AG16: Materiales adquiridos, falta entrega | AH16: N/A | AL16: N/A
A17: Juegos de estrategia | B17: Paquete: 1 backamon, 1 pictionary, 1 turista mundial, 1 uno, 1 rompecabezas de madera de 24 piezas. | C17: 37 | D17: 37 | E17: 261 | F17: 287 | G17: 548 | H17: 0 | I17: 0 | J17: 0 | K17: 0 | L17: 0 | M17: 0 | N17: 0 | O17: 0 | P17: 0 | Q17: 0 | R17: 0 | S17: 0 | T17: 0 | U17: 0 | V17: 0 | W17: 0 | X17: 0 | Y17: 0 | Z17: 0 | AA17: 0 | AB17: 0 | AC17: 0 | AD17: 0 | AE17: 0 | AF17: 0 | AG17: Materiales adquiridos, falta entrega | AH17: N/A | AL17: N/A
A18: Total | C18: =SUM(C14:C17) -> 142 | D18: 96 | E18: 391 | F18: 450 | G18: 841 | H18: 0 | I18: 0 | J18: 0 | K18: 0 | L18: 0 | M18: 0 | N18: 0 | O18: 0 | P18: 0 | Q18: 0 | R18: 0 | S18: 0 | T18: 0 | U18: 0 | V18: 0 | W18: 0 | X18: 0 | Y18: 0 | Z18: 0 | AA18: 0 | AB18: 0 | AC18: 0 | AD18: 0 | AE18: 0 | AF18: 0
A19: En caso de requerir alguna precisión o aclaración, describa brevemente:
A20: MATERIALES EN ALMACEN, FALTA PROGRAMACIÓN DE ENTREGA A LOS SERVICIOS BENEFICIARIOS
A22: 3.12 Dotar de material bibliográfico para estudiantes con aptitudes sobresalientes
C24: Focalizados USAER | F24: ='Servicios EE 2024'!M21 -> 81 | H24: Focalizados CAPEP | K24: ='Servicios EE 2024'!N21 -> 0 | M24: Focalizados CRIE | P24: ='Servicios EE 2024'!O21 -> 0 | R24: Focalizados UOP | U24: ='Servicios EE 2024'!P21 -> 0 | W24: Focalizados UAEBH | Z24: ='Servicios EE 2024'!Q21 -> 0 | AB24: Focalizados Otro | AE24: ='Servicios EE 2024'!R21 -> 0
A25: Tipo de libros (seleccione) | C25: Cantidad a distribuir | D25: USAER | H25: Cantidad a distribuir | I25: CAPEP | M25: Cantidad a distribuir | N25: CRIE | R25: Cantidad a distribuir | S25: UOP | W25: Cantidad a distribuir | X25: UAEBH | AB25: Cantidad a distribuir | AC25: Otro | AG25: Nivel de avance de la acción | AH25: En caso de modificación, indique número de oficio | AL25: Describa brevemente el impacto pedagógico que se obtuvo con esta acción
D26: SEE | E26: Estudiantes | I26: SEE | J26: Estudiantes | N26: SEE | O26: Estudiantes | S26: SEE | T26: Estudiantes | X26: SEE | Y26: Estudiantes | AC26: SEE | AD26: Estudiantes
E27: M | F27: H | G27: T | J27: M | K27: H | L27: T | O27: M | P27: H | Q27: T | T27: M | U27: H | V27: T | Y27: M | Z27: H | AA27: T | AD27: M | AE27: H | AF27: T
A28: Especializados en aptitudes sobresalientes | C28: 972 | D28: 81 | E28: 522 | F28: 561 | G28: =SUM(E28,F28) -> 1083 | H28: 0 | I28: 0 | J28: 0 | K28: 0 | L28: =SUM(J28,K28) -> 0 | M28: 0 | N28: 0 | O28: 0 | P28: 0 | Q28: =SUM(O28,P28) -> 0 | R28: 0 | S28: 0 | T28: 0 | U28: 0 | V28: =SUM(T28,U28) -> 0 | W28: 0 | X28: 0 | Y28: 0 | Z28: 0 | AA28: =SUM(Y28,Z28) -> 0 | AB28: 0 | AC28: 0 | AD28: 0 | AE28: 0 | AF28: =SUM(AD28,AE28) -> 0 | AG28: Materiales adquiridos, falta entrega | AH28: N/A | AL28: N/A
A29: De literatura infantil | C29: 120 | D29: 10 | E29: 63 | F29: 66 | G29: 129 | H29: 0 | I29: 0 | J29: 0 | K29: 0 | L29: =SUM(J29,K29) -> 0 | M29: 0 | N29: 0 | O29: 0 | P29: 0 | Q29: =SUM(O29,P29) -> 0 | R29: 0 | S29: 0 | T29: 0 | U29: 0 | V29: =SUM(T29,U29) -> 0 | W29: 0 | X29: 0 | Y29: 0 | Z29: 0 | AA29: =SUM(Y29,Z29) -> 0 | AB29: 0 | AC29: 0 | AD29: 0 | AE29: 0 | AF29: =SUM(AD29,AE29) -> 0 | AG29: Materiales adquiridos, falta entrega | AH29: N/A | AL29: N/A
A30: Total | C30: =SUM(C28:C29) -> 1092 | D30: 91 | E30: 585 | F30: 627 | G30: 1212 | H30: 0 | I30: 0 | J30: 0 | K30: 0 | L30: 0 | M30: 0 | N30: 0 | O30: 0 | P30: 0 | Q30: 0 | R30: 0 | S30: 0 | T30: 0 | U30: 0 | V30: 0 | W30: 0 | X30: 0 | Y30: 0 | Z30: 0 | AA30: 0 | AB30: 0 | AC30: 0 | AD30: 0 | AE30: 0 | AF30: 0
A31: En caso de requerir alguna precisión o aclaración, describa brevemente:
A32: MATERIALES EN ALMACEN, FALTA PROGRAMACIÓN DE ENTREGA A LOS SERVICIOS BENEFICIARIOS
A34: 3.14 Dotar de equipo tecnológico y/o multimedia para estudiantes con aptitudes sobresalientes
C36: Focalizados USAER | F36: ='Servicios EE 2024'!M21 -> 81 | H36: Focalizados CAPEP | K36: ='Servicios EE 2024'!N21 -> 0 | M36: Focalizados CRIE | P36: ='Servicios EE 2024'!O21 -> 0 | R36: Focalizados UOP | U36: ='Servicios EE 2024'!P21 -> 0 | W36: Focalizados UAEBH | Z36: ='Servicios EE 2024'!Q21 -> 0 | AB36: Focalizados Otro | AE36: ='Servicios EE 2024'!R21 -> 0
A37: Tipo de equipo (seleccione) | B37: Características generales de los equipos | C37: Cantidad a distribuir | D37: USAER | H37: Cantidad a distribuir | I37: CAPEP | M37: Cantidad a distribuir | N37: CRIE | R37: Cantidad a distribuir | S37: UOP | W37: Cantidad a distribuir | X37: UAEBH | AB37: Cantidad a distribuir | AC37: Otro | AG37: Nivel de avance de la acción | AH37: En caso de modificación, indique número de oficio | AL37: Describa brevemente el impacto pedagógico que se obtuvo con esta acción
D38: SEE | E38: Estudiantes | I38: SEE | J38: Estudiantes | N38: SEE | O38: Estudiantes | S38: SEE | T38: Estudiantes | X38: SEE | Y38: Estudiantes | AC38: SEE | AD38: Estudiantes
E39: M | F39: H | G39: T | J39: M | K39: H | L39: T | O39: M | P39: H | Q39: T | T39: M | U39: H | V39: T | Y39: M | Z39: H | AA39: T | AD39: M | AE39: H | AF39: T
A40: Cañón | B40: Proyector lcd, 3400 lúmenes, brillo de proyector, lámpara UHE 210 vatios, tecnología de proyección 3LCD, resolución de proyección XGA (1024 x 768), resolución de contraste 15000:1 dinámico | C40: 28 | D40: 28 | E40: 148 | F40: 164 | G40: =SUM(E40,F40) -> 312 | H40: 0 | I40: 0 | J40: 0 | K40: 0 | L40: =SUM(J40,K40) -> 0 | M40: 0 | N40: 0 | O40: 0 | P40: 0 | Q40: =SUM(O40,P40) -> 0 | R40: 0 | S40: 0 | T40: 0 | U40: 0 | V40: =SUM(T40,U40) -> 0 | W40: 0 | X40: 0 | Y40: 0 | Z40: 0 | AA40: =SUM(Y40,Z40) -> 0 | AB40: 0 | AC40: 0 | AD40: 0 | AE40: 0 | AF40: =SUM(AD40,AE40) -> 0 | AG40: Materiales adquiridos, falta entrega | AH40: N/A | AL40: N/A
A41: Equipo de cómputo | B41: Laptop, procesador intel core 15-1235 U 12 th gen (12 MB CACHÉ, 10 core 12 threads 4.40 Ghz turbo). Sistema operativo windows 11 home single en español. Microsoft office profesional 2021 en español. Adaptador de C.A.65 watt. Memoria ram 8 gb DDR4 3200 mhz. pantalla 16 pulgadas fhd (1920 x 1200) 60 hz led antirreflejo. teclado en español, tarjeta inhalámbrica wifi 6E AX211, 2X2, 802.11ax, bluetooth. | C41: 13 | D41: 13 | E41: 79 | F41: 96 | G41: =SUM(E41,F41) -> 175 | H41: 0 | I41: 0 | J41: 0 | K41: 0 | L41: =SUM(J41,K41) -> 0 | M41: 0 | N41: 0 | O41: 0 | P41: 0 | Q41: =SUM(O41,P41) -> 0 | R41: 0 | S41: 0 | T41: 0 | U41: 0 | V41: =SUM(T41,U41) -> 0 | W41: 0 | X41: 0 | Y41: 0 | Z41: 0 | AA41: =SUM(Y41,Z41) -> 0 | AB41: 0 | AC41: 0 | AD41: 0 | AE41: 0 | AF41: =SUM(AD41,AE41) -> 0 | AG41: Materiales adquiridos, falta entrega | AH41: N/A | AL41: N/A
A42: Equipo de cómputo | B42: PC escritorio: Intel®️ Core™️ i5 14500T vPro®️ (24MB cache, 14 cores, 20 threads, up to 4.8 GHz) Windows 11 Pro, inglés, español, francés y portugués de Brasil Intel®️ Graphics 8 GB: 1 x 8 GB, DDR5 256 GB, M.2 2230, PCIe NVMe, SSD, Class 35 23.8 pulgadas pantalla | C42: 3 | D42: 3 | E42: 2 | F42: 10 | G42: 12 | H42: 0 | I42: 0 | J42: 0 | K42: 0 | L42: 0 | M42: 0 | N42: 0 | O42: 0 | P42: 0 | Q42: 0 | R42: 0 | S42: 0 | T42: 0 | U42: 0 | V42: 0 | W42: 0 | X42: 0 | Y42: 0 | Z42: 0 | AA42: 0 | AB42: 0 | AC42: 0 | AD42: 0 | AE42: 0 | AF42: 0 | AG42: Materiales adquiridos, falta entrega | AH42: N/A | AL42: N/A
A43: Impresora | B43: multifuncional de inyección de tinta continua, volumen de impresión mensual 500 páginas aproximadamente, velocidad de impresión en negro 10 ppm, velocidad de impresión a color 5 ppm, interface ethernet integrada. | C43: 23 | D43: 23 | E43: 120 | F43: 116 | G43: 236 | H43: 0 | I43: 0 | J43: 0 | K43: 0 | L43: 0 | M43: 0 | N43: 0 | O43: 0 | P43: 0 | Q43: 0 | R43: 0 | S43: 0 | T43: 0 | U43: 0 | V43: 0 | W43: 0 | X43: 0 | Y43: 0 | Z43: 0 | AA43: 0 | AB43: 0 | AC43: 0 | AD43: 0 | AE43: 0 | AF43: 0 | AG43: Materiales adquiridos, falta entrega | AH43: N/A | AL43: N/A
A44: Enmicadora | B44: Enmicadora térmica fusiónL ancho 22 cm carta, 3.5 milésimas, dimensiones 14, 2L, x 12,6 w x 41, 4h centímetros. | C44: 12 | D44: 12 | E44: 51 | F44: 61 | G44: 112 | H44: 0 | I44: 0 | J44: 0 | K44: 0 | L44: 0 | M44: 0 | N44: 0 | O44: 0 | P44: 0 | Q44: 0 | R44: 0 | S44: 0 | T44: 0 | U44: 0 | V44: 0 | W44: 0 | X44: 0 | Y44: 0 | Z44: 0 | AA44: 0 | AB44: 0 | AC44: 0 | AD44: 0 | AE44: 0 | AF44: 0 | AG44: Materiales adquiridos, falta entrega | AH44: N/A | AL44: N/A
A45: Total | C45: =SUM(C40:C44) -> 79 | D45: 79 | E45: 400 | F45: 447 | G45: 847 | H45: 0 | I45: 0 | J45: 0 | K45: 0 | L45: 0 | M45: 0 | N45: 0 | O45: 0 | P45: 0 | Q45: 0 | R45: 0 | S45: 0 | T45: 0 | U45: 0 | V45: 0 | W45: 0 | X45: 0 | Y45: 0 | Z45: 0 | AA45: 0 | AB45: 0 | AC45: 0 | AD45: 0 | AE45: 0 | AF45: 0
A46: En caso de requerir alguna precisión o aclaración, describa brevemente:
A47: MATERIALES EN ALMACEN, FALTA PROGRAMACIÓN DE ENTREGA A LOS SERVICIOS BENEFICIARIOS

Sheet Gastos de Operación Local
A1: Subsecretaría de Educación Básica Dirección General de Desarrollo Curricular Dirección de Fortalecimiento Curricular para la Formación Personal y Social en la Educación Básica Educación Especial | H1: Subsecretaría de Educación Básica Dirección General de Desarrollo Curricular Dirección de Fortalecimiento Curricular para la Formación Personal y Social en la Educación Básica Educación Especial
A7: Gastos de operación local 2024
A8: Tipo | B8: Descripción de las actividades realizadas | C8: Nivel de avance de la acción | D8: Precisión, descripción de los niveles de avance o aclaración | E8: En caso de modificación, indique número de oficio
A9: Planeación | B9: N/A | D9: N/A | E9: N/A
A10: Seguimiento y supervisión | B10: Viáticos, combustible, coffee brake, hospedaje, y alimentación. | C10: En desarrollo | D10: Se han realizado visitas de seguimiento y supervisión de las actividades. | E10: N/A
A11: Evaluación | B11: Aplicación de la evaluación externa de acuerdo al numeral 6.2 de RO | C11: En desarrollo | D11: En proceso de acuerdo a lo estipulado | E11: N/A
A12: Acciones de Contraloría Social | B12: Conformación de comités de contraloría social, asesoría y difusión. | C12: Realizada | D12: Entrega de informe final de contraloría y entrega de materiales de difusión | E12: N/A
A13: Asistencia a reuniones convocadas por la DGDC | B13: Viáticos y pasajes aereos | C13: Realizada | D13: Asistencia de dos figuras a reunión nacional. | E13: N/A
A14: Distribución de materiales a los SEE focalizados | B14: ADQUISICIÓN DE COMBUSTIBLE PARA LA ENTREGA DE MATERIALES. | C14: En desarrollo | D14: COMBUSTIBLE ADQUIRIDO Y EN RESGUARDO | E14: N/A
A15: En caso de requerir alguna precisión o aclaración, describa brevemente:

Sheet Autorización 2024
G1: Subsecretaría de Educación Básica Dirección General de Desarrollo Curricular Dirección de Fortalecimiento Curricular para la Formación Personal y Social en la Educación Básica
A6: AUTORIZACIÓN DEL INFORME TÉCNICO PEDAGÓGICO 2024
B7: Señale con una "X" el trimestre que se autoriza reportar
B8: 1er. Trimestre (enero a marzo) | C8: 2° Trimestre (abril a junio) | E8: 3er. Trimestre (julio a septiembre) | G8: 4° Trimestre (octubre a diciembre)
G9: X
A11: Validación de la / de la Persona Coordinadora Local
A12: Nombre | D12: DR. ANTONIO HERRERA MONTES
A13: Cargo | D13: ENCARGADO DE LA COORDINACIÓN PFSEE DURANGO
A14: Firma y sello
A16: Validación de la / del Responsable de Educación Especial subsistema Estatal
A17: Nombre | D17: N/A
A18: Cargo | D18: N/A
A19: Firma y sello | D19: N/A
A21: Validación de la / del Responsable de Educación Especial subsistema Federal
A22: Nombre | D22: DR. ANTONIO HERRERA MONTES
A23: Cargo | D23: ENCARGADO DE LA JEFATURA DE DEPARTAMENTO DE EDUCACIÓN ESPECIAL
A24: Firma y sello
